{"text_format":"1","workbook":"xlsx","n_sheets":5,"sheets":["Base de datos empleados","Ingresar empleados","Consultar empleados","Aux","Hoja1"],"not_rendered":{"charts":0,"images":2,"macros":1,"external_links":0,"defined_names":2,"comments":0,"pivot_tables":0},"unopened":[],"bounds":{"document_bytes":16777216,"sheet_cells":100000,"rows_first":2000,"rows_last":500,"rows_between":2000,"halvings":0,"cell_chars":16384,"cell_head_chars":4096},"cells_cut":0,"cells_raw":0,"read":"whole","date_system":"1900"}

{"sheet":"Base de datos empleados","index":0,"n_rows":498,"n_cols":13,"rows_kept":498,"cut":false,"hidden":false,"merged":[]}
[]
[]
["Información Personal"]
["Fecha de Ingreso"," N° de Empleado","Nombre","Apellido","Fecha de Nacimiento","Lugar de nacimiento","Cédula","Sexo","Estado Civil","Correo electrónico","Teléfono"]
[]
[]
[]
[]
[]
[]
[]
[]
[]
[]
[]
[]
[]
[null,null,null,null,null,null,null,null,null,null,null,{"$f":"A18","v":"00:00:00"},{"$f":"B18","v":0}]
[null,null,null,null,null,null,null,null,null,null,null,"00:00:00",0]
[null,null,null,null,null,null,null,null,null,null,null,"00:00:00",0]
[null,null,null,null,null,null,null,null,null,null,null,"00:00:00",0]
[null,null,null,null,null,null,null,null,null,null,null,"00:00:00",0]
[null,null,null,null,null,null,null,null,null,null,null,"00:00:00",0]
[null,null,null,null,null,null,null,null,null,null,null,"00:00:00",0]
[null,null,null,null,null,null,null,null,null,null,null,"00:00:00",0]
[null,null,null,null,null,null,null,null,null,null,null,"00:00:00",0]
[null,null,null,null,null,null,null,null,null,null,null,"00:00:00",0]
[null,null,null,null,null,null,null,null,null,null,null,"00:00:00",0]
[null,null,null,null,null,null,null,null,null,null,null,"00:00:00",0]
[null,null,null,null,null,null,null,null,null,null,null,"00:00:00",0]
[null,null,null,null,null,null,null,null,null,null,null,"00:00:00",0]
[null,null,null,null,null,null,null,null,null,null,null,"00:00:00",0]
[null,null,null,null,null,null,null,null,null,null,null,"00:00:00",0]
[null,null,null,null,null,null,null,null,null,null,null,"00:00:00",0]
[null,null,null,null,null,null,null,null,null,null,null,"00:00:00",0]
[null,null,null,null,null,null,null,null,null,null,null,"00:00:00",0]
[null,null,null,null,null,null,null,null,null,null,null,"00:00:00",0]
[null,null,null,null,null,null,null,null,null,null,null,{"$f":"A38","v":"00:00:00"},0]
[null,null,null,null,null,null,null,null,null,null,null,"00:00:00",0]
[null,null,null,null,null,null,null,null,null,null,null,"00:00:00",0]
[null,null,null,null,null,null,null,null,null,null,null,"00:00:00",0]
[null,null,null,null,null,null,null,null,null,null,null,"00:00:00",0]
[null,null,null,null,null,null,null,null,null,null,null,"00:00:00",0]
[null,null,null,null,null,null,null,null,null,null,null,"00:00:00",0]
[null,null,null,null,null,null,null,null,null,null,null,"00:00:00",0]
[null,null,null,null,null,null,null,null,null,null,null,"00:00:00",0]
[null,null,null,null,null,null,null,null,null,null,null,"00:00:00",0]
[null,null,null,null,null,null,null,null,null,null,null,"00:00:00",0]
[null,null,null,null,null,null,null,null,null,null,null,"00:00:00",0]
[null,null,null,null,null,null,null,null,null,null,null,"00:00:00",0]
[null,null,null,null,null,null,null,null,null,null,null,"00:00:00",0]
[null,null,null,null,null,null,null,null,null,null,null,"00:00:00",0]
[null,null,null,null,null,null,null,null,null,null,null,"00:00:00",0]
[null,null,null,null,null,null,null,null,null,null,null,"00:00:00",0]
[null,null,null,null,null,null,null,null,null,null,null,"00:00:00",0]
[null,null,null,null,null,null,null,null,null,null,null,"00:00:00",0]
[null,null,null,null,null,null,null,null,null,null,null,"00:00:00",0]
[null,null,null,null,null,null,null,null,null,null,null,"00:00:00",0]
[null,null,null,null,null,null,null,null,null,null,null,"00:00:00",0]
[null,null,null,null,null,null,null,null,null,null,null,"00:00:00",0]
[null,null,null,null,null,null,null,null,null,null,null,"00:00:00",0]
[null,null,null,null,null,null,null,null,null,null,null,"00:00:00",0]
[null,null,null,null,null,null,null,null,null,null,null,"00:00:00",0]
[null,null,null,null,null,null,null,null,null,null,null,"00:00:00",0]
[null,null,null,null,null,null,null,null,null,null,null,"00:00:00",0]
[null,null,null,null,null,null,null,null,null,null,null,"00:00:00",0]
[null,null,null,null,null,null,null,null,null,null,null,"00:00:00",0]
[null,null,null,null,null,null,null,null,null,null,null,{"$f":"A68","v":"00:00:00"},{"$f":"B68","v":0}]
[null,null,null,null,null,null,null,null,null,null,null,"00:00:00",0]
[null,null,null,null,null,null,null,null,null,null,null,"00:00:00",0]
[null,null,null,null,null,null,null,null,null,null,null,"00:00:00",0]
[null,null,null,null,null,null,null,null,null,null,null,"00:00:00",0]
[null,null,null,null,null,null,null,null,null,null,null,"00:00:00",0]
[null,null,null,null,null,null,null,null,null,null,null,"00:00:00",0]
[null,null,null,null,null,null,null,null,null,null,null,"00:00:00",0]
[null,null,null,null,null,null,null,null,null,null,null,"00:00:00",0]
[null,null,null,null,null,null,null,null,null,null,null,"00:00:00",0]
[null,null,null,null,null,null,null,null,null,null,null,"00:00:00",0]
[null,null,null,null,null,null,null,null,null,null,null,"00:00:00",0]
[null,null,null,null,null,null,null,null,null,null,null,"00:00:00",0]
[null,null,null,null,null,null,null,null,null,null,null,"00:00:00",0]
[null,null,null,null,null,null,null,null,null,null,null,"00:00:00",0]
[null,null,null,null,null,null,null,null,null,null,null,"00:00:00",0]
[null,null,null,null,null,null,null,null,null,null,null,"00:00:00",0]
[null,null,null,null,null,null,null,null,null,null,null,"00:00:00",0]
[null,null,null,null,null,null,null,null,null,null,null,"00:00:00",0]
[null,null,null,null,null,null,null,null,null,null,null,"00:00:00",0]
[null,null,null,null,null,null,null,null,null,null,null,"00:00:00",0]
[null,null,null,null,null,null,null,null,null,null,null,"00:00:00",0]
[null,null,null,null,null,null,null,null,null,null,null,"00:00:00",0]
[null,null,null,null,null,null,null,null,null,null,null,"00:00:00",0]
[null,null,null,null,null,null,null,null,null,null,null,"00:00:00",0]
[null,null,null,null,null,null,null,null,null,null,null,"00:00:00",0]
[null,null,null,null,null,null,null,null,null,null,null,"00:00:00",0]
[null,null,null,null,null,null,null,null,null,null,null,"00:00:00",0]
[null,null,null,null,null,null,null,null,null,null,null,"00:00:00",0]
[null,null,null,null,null,null,null,null,null,null,null,"00:00:00",0]
[null,null,null,null,null,null,null,null,null,null,null,"00:00:00",0]
[null,null,null,null,null,null,null,null,null,null,null,"00:00:00",0]
[null,null,null,null,null,null,null,null,null,null,null,"00:00:00",0]
[null,null,null,null,null,null,null,null,null,null,null,"00:00:00",0]
[null,null,null,null,null,null,null,null,null,null,null,"00:00:00",0]
[null,null,null,null,null,null,null,null,null,null,null,"00:00:00",0]
[null,null,null,null,null,null,null,null,null,null,null,"00:00:00",0]
[null,null,null,null,null,null,null,null,null,null,null,"00:00:00",0]
[null,null,null,null,null,null,null,null,null,null,null,"00:00:00",0]
[null,null,null,null,null,null,null,null,null,null,null,"00:00:00",0]
[null,null,null,null,null,null,null,null,null,null,null,"00:00:00",0]
[null,null,null,null,null,null,null,null,null,null,null,"00:00:00",0]
[null,null,null,null,null,null,null,null,null,null,null,"00:00:00",0]
[null,null,null,null,null,null,null,null,null,null,null,"00:00:00",0]
[null,null,null,null,null,null,null,null,null,null,null,"00:00:00",0]
[null,null,null,null,null,null,null,null,null,null,null,"00:00:00",0]
[null,null,null,null,null,null,null,null,null,null,null,"00:00:00",0]
[null,null,null,null,null,null,null,null,null,null,null,"00:00:00",0]
[null,null,null,null,null,null,null,null,null,null,null,"00:00:00",0]
[null,null,null,null,null,null,null,null,null,null,null,"00:00:00",0]
[null,null,null,null,null,null,null,null,null,null,null,"00:00:00",0]
[null,null,null,null,null,null,null,null,null,null,null,"00:00:00",0]
[null,null,null,null,null,null,null,null,null,null,null,"00:00:00",0]
[null,null,null,null,null,null,null,null,null,null,null,"00:00:00",0]
[null,null,null,null,null,null,null,null,null,null,null,"00:00:00",0]
[null,null,null,null,null,null,null,null,null,null,null,"00:00:00",0]
[null,null,null,null,null,null,null,null,null,null,null,"00:00:00",0]
[null,null,null,null,null,null,null,null,null,null,null,"00:00:00",0]
[null,null,null,null,null,null,null,null,null,null,null,"00:00:00",0]
[null,null,null,null,null,null,null,null,null,null,null,"00:00:00",0]
[null,null,null,null,null,null,null,null,null,null,null,"00:00:00",0]
[null,null,null,null,null,null,null,null,null,null,null,"00:00:00",0]
[null,null,null,null,null,null,null,null,null,null,null,"00:00:00",0]
[null,null,null,null,null,null,null,null,null,null,null,"00:00:00",0]
[null,null,null,null,null,null,null,null,null,null,null,{"$f":"A132","v":"00:00:00"},{"$f":"B132","v":0}]
[null,null,null,null,null,null,null,null,null,null,null,"00:00:00",0]
[null,null,null,null,null,null,null,null,null,null,null,"00:00:00",0]
[null,null,null,null,null,null,null,null,null,null,null,"00:00:00",0]
[null,null,null,null,null,null,null,null,null,null,null,"00:00:00",0]
[null,null,null,null,null,null,null,null,null,null,null,"00:00:00",0]
[null,null,null,null,null,null,null,null,null,null,null,"00:00:00",0]
[null,null,null,null,null,null,null,null,null,null,null,"00:00:00",0]
[null,null,null,null,null,null,null,null,null,null,null,"00:00:00",0]
[null,null,null,null,null,null,null,null,null,null,null,"00:00:00",0]
[null,null,null,null,null,null,null,null,null,null,null,"00:00:00",0]
[null,null,null,null,null,null,null,null,null,null,null,"00:00:00",0]
[null,null,null,null,null,null,null,null,null,null,null,"00:00:00",0]
[null,null,null,null,null,null,null,null,null,null,null,"00:00:00",0]
[null,null,null,null,null,null,null,null,null,null,null,"00:00:00",0]
[null,null,null,null,null,null,null,null,null,null,null,"00:00:00",0]
[null,null,null,null,null,null,null,null,null,null,null,"00:00:00",0]
[null,null,null,null,null,null,null,null,null,null,null,"00:00:00",0]
[null,null,null,null,null,null,null,null,null,null,null,"00:00:00",0]
[null,null,null,null,null,null,null,null,null,null,null,"00:00:00",0]
[null,null,null,null,null,null,null,null,null,null,null,"00:00:00",0]
[null,null,null,null,null,null,null,null,null,null,null,"00:00:00",0]
[null,null,null,null,null,null,null,null,null,null,null,"00:00:00",0]
[null,null,null,null,null,null,null,null,null,null,null,"00:00:00",0]
[null,null,null,null,null,null,null,null,null,null,null,"00:00:00",0]
[null,null,null,null,null,null,null,null,null,null,null,"00:00:00",0]
[null,null,null,null,null,null,null,null,null,null,null,"00:00:00",0]
[null,null,null,null,null,null,null,null,null,null,null,"00:00:00",0]
[null,null,null,null,null,null,null,null,null,null,null,"00:00:00",0]
[null,null,null,null,null,null,null,null,null,null,null,"00:00:00",0]
[null,null,null,null,null,null,null,null,null,null,null,"00:00:00",0]
[null,null,null,null,null,null,null,null,null,null,null,"00:00:00",0]
[null,null,null,null,null,null,null,null,null,null,null,"00:00:00",0]
[null,null,null,null,null,null,null,null,null,null,null,"00:00:00",0]
[null,null,null,null,null,null,null,null,null,null,null,"00:00:00",0]
[null,null,null,null,null,null,null,null,null,null,null,"00:00:00",0]
[null,null,null,null,null,null,null,null,null,null,null,{"$f":"A168","v":"00:00:00"},{"$f":"B168","v":0}]
[null,null,null,null,null,null,null,null,null,null,null,"00:00:00",0]
[null,null,null,null,null,null,null,null,null,null,null,{"$f":"A170","v":"00:00:00"},{"$f":"B170","v":0}]
[null,null,null,null,null,null,null,null,null,null,null,"00:00:00",0]
[null,null,null,null,null,null,null,null,null,null,null,"00:00:00",0]
[null,null,null,null,null,null,null,null,null,null,null,"00:00:00",0]
[null,null,null,null,null,null,null,null,null,null,null,"00:00:00",0]
[null,null,null,null,null,null,null,null,null,null,null,"00:00:00",0]
[null,null,null,null,null,null,null,null,null,null,null,"00:00:00",0]
[null,null,null,null,null,null,null,null,null,null,null,"00:00:00",0]
[null,null,null,null,null,null,null,null,null,null,null,"00:00:00",0]
[null,null,null,null,null,null,null,null,null,null,null,"00:00:00",0]
[null,null,null,null,null,null,null,null,null,null,null,"00:00:00",0]
[null,null,null,null,null,null,null,null,null,null,null,"00:00:00",0]
[null,null,null,null,null,null,null,null,null,null,null,"00:00:00",0]
[null,null,null,null,null,null,null,null,null,null,null,"00:00:00",0]
[null,null,null,null,null,null,null,null,null,null,null,"00:00:00",0]
[null,null,null,null,null,null,null,null,null,null,null,"00:00:00",0]
[null,null,null,null,null,null,null,null,null,null,null,"00:00:00",0]
[null,null,null,null,null,null,null,null,null,null,null,"00:00:00",0]
[null,null,null,null,null,null,null,null,null,null,null,"00:00:00",0]
[null,null,null,null,null,null,null,null,null,null,null,"00:00:00",0]
[null,null,null,null,null,null,null,null,null,null,null,"00:00:00",0]
[null,null,null,null,null,null,null,null,null,null,null,"00:00:00",0]
[null,null,null,null,null,null,null,null,null,null,null,"00:00:00",0]
[null,null,null,null,null,null,null,null,null,null,null,"00:00:00",0]
[null,null,null,null,null,null,null,null,null,null,null,"00:00:00",0]
[null,null,null,null,null,null,null,null,null,null,null,"00:00:00",0]
[null,null,null,null,null,null,null,null,null,null,null,"00:00:00",0]
[null,null,null,null,null,null,null,null,null,null,null,"00:00:00",0]
[null,null,null,null,null,null,null,null,null,null,null,"00:00:00",0]
[null,null,null,null,null,null,null,null,null,null,null,"00:00:00",0]
[null,null,null,null,null,null,null,null,null,null,null,"00:00:00",0]
[null,null,null,null,null,null,null,null,null,null,null,"00:00:00",0]
[null,null,null,null,null,null,null,null,null,null,null,"00:00:00",0]
[null,null,null,null,null,null,null,null,null,null,null,"00:00:00",0]
[null,null,null,null,null,null,null,null,null,null,null,"00:00:00",0]
[null,null,null,null,null,null,null,null,null,null,null,"00:00:00",0]
[null,null,null,null,null,null,null,null,null,null,null,"00:00:00",0]
[null,null,null,null,null,null,null,null,null,null,null,"00:00:00",0]
[null,null,null,null,null,null,null,null,null,null,null,"00:00:00",0]
[null,null,null,null,null,null,null,null,null,null,null,"00:00:00",0]
[null,null,null,null,null,null,null,null,null,null,null,"00:00:00",0]
[null,null,null,null,null,null,null,null,null,null,null,"00:00:00",0]
[null,null,null,null,null,null,null,null,null,null,null,"00:00:00",0]
[null,null,null,null,null,null,null,null,null,null,null,"00:00:00",0]
[null,null,null,null,null,null,null,null,null,null,null,"00:00:00",0]
[null,null,null,null,null,null,null,null,null,null,null,"00:00:00",0]
[null,null,null,null,null,null,null,null,null,null,null,"00:00:00",0]
[null,null,null,null,null,null,null,null,null,null,null,"00:00:00",0]
[null,null,null,null,null,null,null,null,null,null,null,"00:00:00",0]
[null,null,null,null,null,null,null,null,null,null,null,"00:00:00",0]
[null,null,null,null,null,null,null,null,null,null,null,"00:00:00",0]
[null,null,null,null,null,null,null,null,null,null,null,"00:00:00",0]
[null,null,null,null,null,null,null,null,null,null,null,"00:00:00",0]
[null,null,null,null,null,null,null,null,null,null,null,"00:00:00",0]
[null,null,null,null,null,null,null,null,null,null,null,"00:00:00",0]
[null,null,null,null,null,null,null,null,null,null,null,"00:00:00",0]
[null,null,null,null,null,null,null,null,null,null,null,"00:00:00",0]
[null,null,null,null,null,null,null,null,null,null,null,"00:00:00",0]
[null,null,null,null,null,null,null,null,null,null,null,"00:00:00",0]
[null,null,null,null,null,null,null,null,null,null,null,"00:00:00",0]
[null,null,null,null,null,null,null,null,null,null,null,"00:00:00",0]
[null,null,null,null,null,null,null,null,null,null,null,"00:00:00",0]
[null,null,null,null,null,null,null,null,null,null,null,"00:00:00",0]
[null,null,null,null,null,null,null,null,null,null,null,"00:00:00",0]
[null,null,null,null,null,null,null,null,null,null,null,{"$f":"A234","v":"00:00:00"},{"$f":"B234","v":0}]
[null,null,null,null,null,null,null,null,null,null,null,"00:00:00",0]
[null,null,null,null,null,null,null,null,null,null,null,"00:00:00",0]
[null,null,null,null,null,null,null,null,null,null,null,"00:00:00",0]
[null,null,null,null,null,null,null,null,null,null,null,"00:00:00",0]
[null,null,null,null,null,null,null,null,null,null,null,"00:00:00",0]
[null,null,null,null,null,null,null,null,null,null,null,"00:00:00",0]
[null,null,null,null,null,null,null,null,null,null,null,"00:00:00",0]
[null,null,null,null,null,null,null,null,null,null,null,"00:00:00",0]
[null,null,null,null,null,null,null,null,null,null,null,"00:00:00",0]
[null,null,null,null,null,null,null,null,null,null,null,"00:00:00",0]
[null,null,null,null,null,null,null,null,null,null,null,"00:00:00",0]
[null,null,null,null,null,null,null,null,null,null,null,"00:00:00",0]
[null,null,null,null,null,null,null,null,null,null,null,"00:00:00",0]
[null,null,null,null,null,null,null,null,null,null,null,"00:00:00",0]
[null,null,null,null,null,null,null,null,null,null,null,"00:00:00",0]
[null,null,null,null,null,null,null,null,null,null,null,"00:00:00",0]
[null,null,null,null,null,null,null,null,null,null,null,"00:00:00",0]
[null,null,null,null,null,null,null,null,null,null,null,"00:00:00",0]
[null,null,null,null,null,null,null,null,null,null,null,"00:00:00",0]
[null,null,null,null,null,null,null,null,null,null,null,"00:00:00",0]
[null,null,null,null,null,null,null,null,null,null,null,"00:00:00",0]
[null,null,null,null,null,null,null,null,null,null,null,"00:00:00",0]
[null,null,null,null,null,null,null,null,null,null,null,"00:00:00",0]
[null,null,null,null,null,null,null,null,null,null,null,"00:00:00",0]
[null,null,null,null,null,null,null,null,null,null,null,"00:00:00",0]
[null,null,null,null,null,null,null,null,null,null,null,"00:00:00",0]
[null,null,null,null,null,null,null,null,null,null,null,"00:00:00",0]
[null,null,null,null,null,null,null,null,null,null,null,"00:00:00",0]
[null,null,null,null,null,null,null,null,null,null,null,"00:00:00",0]
[null,null,null,null,null,null,null,null,null,null,null,"00:00:00",0]
[null,null,null,null,null,null,null,null,null,null,null,"00:00:00",0]
[null,null,null,null,null,null,null,null,null,null,null,"00:00:00",0]
[null,null,null,null,null,null,null,null,null,null,null,"00:00:00",0]
[null,null,null,null,null,null,null,null,null,null,null,"00:00:00",0]
[null,null,null,null,null,null,null,null,null,null,null,"00:00:00",0]
[null,null,null,null,null,null,null,null,null,null,null,"00:00:00",0]
[null,null,null,null,null,null,null,null,null,null,null,"00:00:00",0]
[null,null,null,null,null,null,null,null,null,null,null,"00:00:00",0]
[null,null,null,null,null,null,null,null,null,null,null,"00:00:00",0]
[null,null,null,null,null,null,null,null,null,null,null,"00:00:00",0]
[null,null,null,null,null,null,null,null,null,null,null,"00:00:00",0]
[null,null,null,null,null,null,null,null,null,null,null,"00:00:00",0]
[null,null,null,null,null,null,null,null,null,null,null,"00:00:00",0]
[null,null,null,null,null,null,null,null,null,null,null,"00:00:00",0]
[null,null,null,null,null,null,null,null,null,null,null,"00:00:00",0]
[null,null,null,null,null,null,null,null,null,null,null,"00:00:00",0]
[null,null,null,null,null,null,null,null,null,null,null,"00:00:00",0]
[null,null,null,null,null,null,null,null,null,null,null,"00:00:00",0]
[null,null,null,null,null,null,null,null,null,null,null,"00:00:00",0]
[null,null,null,null,null,null,null,null,null,null,null,"00:00:00",0]
[null,null,null,null,null,null,null,null,null,null,null,"00:00:00",0]
[null,null,null,null,null,null,null,null,null,null,null,"00:00:00",0]
[null,null,null,null,null,null,null,null,null,null,null,"00:00:00",0]
[null,null,null,null,null,null,null,null,null,null,null,"00:00:00",0]
[null,null,null,null,null,null,null,null,null,null,null,"00:00:00",0]
[null,null,null,null,null,null,null,null,null,null,null,"00:00:00",0]
[null,null,null,null,null,null,null,null,null,null,null,"00:00:00",0]
[null,null,null,null,null,null,null,null,null,null,null,"00:00:00",0]
[null,null,null,null,null,null,null,null,null,null,null,"00:00:00",0]
[null,null,null,null,null,null,null,null,null,null,null,"00:00:00",0]
[null,null,null,null,null,null,null,null,null,null,null,"00:00:00",0]
[null,null,null,null,null,null,null,null,null,null,null,"00:00:00",0]
[null,null,null,null,null,null,null,null,null,null,null,"00:00:00",0]
[null,null,null,null,null,null,null,null,null,null,null,{"$f":"A298","v":"00:00:00"},{"$f":"B298","v":0}]
[null,null,null,null,null,null,null,null,null,null,null,"00:00:00",0]
[null,null,null,null,null,null,null,null,null,null,null,"00:00:00",0]
[null,null,null,null,null,null,null,null,null,null,null,"00:00:00",0]
[null,null,null,null,null,null,null,null,null,null,null,"00:00:00",0]
[null,null,null,null,null,null,null,null,null,null,null,"00:00:00",0]
[null,null,null,null,null,null,null,null,null,null,null,"00:00:00",0]
[null,null,null,null,null,null,null,null,null,null,null,"00:00:00",0]
[null,null,null,null,null,null,null,null,null,null,null,"00:00:00",0]
[null,null,null,null,null,null,null,null,null,null,null,"00:00:00",0]
[null,null,null,null,null,null,null,null,null,null,null,"00:00:00",0]
[null,null,null,null,null,null,null,null,null,null,null,"00:00:00",0]
[null,null,null,null,null,null,null,null,null,null,null,"00:00:00",0]
[null,null,null,null,null,null,null,null,null,null,null,"00:00:00",0]
[null,null,null,null,null,null,null,null,null,null,null,"00:00:00",0]
[null,null,null,null,null,null,null,null,null,null,null,"00:00:00",0]
[null,null,null,null,null,null,null,null,null,null,null,"00:00:00",0]
[null,null,null,null,null,null,null,null,null,null,null,"00:00:00",0]
[null,null,null,null,null,null,null,null,null,null,null,"00:00:00",0]
[null,null,null,null,null,null,null,null,null,null,null,"00:00:00",0]
[null,null,null,null,null,null,null,null,null,null,null,"00:00:00",0]
[null,null,null,null,null,null,null,null,null,null,null,"00:00:00",0]
[null,null,null,null,null,null,null,null,null,null,null,"00:00:00",0]
[null,null,null,null,null,null,null,null,null,null,null,"00:00:00",0]
[null,null,null,null,null,null,null,null,null,null,null,"00:00:00",0]
[null,null,null,null,null,null,null,null,null,null,null,"00:00:00",0]
[null,null,null,null,null,null,null,null,null,null,null,"00:00:00",0]
[null,null,null,null,null,null,null,null,null,null,null,"00:00:00",0]
[null,null,null,null,null,null,null,null,null,null,null,"00:00:00",0]
[null,null,null,null,null,null,null,null,null,null,null,"00:00:00",0]
[null,null,null,null,null,null,null,null,null,null,null,"00:00:00",0]
[null,null,null,null,null,null,null,null,null,null,null,"00:00:00",0]
[null,null,null,null,null,null,null,null,null,null,null,"00:00:00",0]
[null,null,null,null,null,null,null,null,null,null,null,"00:00:00",0]
[null,null,null,null,null,null,null,null,null,null,null,"00:00:00",0]
[null,null,null,null,null,null,null,null,null,null,null,"00:00:00",0]
[null,null,null,null,null,null,null,null,null,null,null,"00:00:00",0]
[null,null,null,null,null,null,null,null,null,null,null,"00:00:00",0]
[null,null,null,null,null,null,null,null,null,null,null,"00:00:00",0]
[null,null,null,null,null,null,null,null,null,null,null,"00:00:00",0]
[null,null,null,null,null,null,null,null,null,null,null,"00:00:00",0]
[null,null,null,null,null,null,null,null,null,null,null,"00:00:00",0]
[null,null,null,null,null,null,null,null,null,null,null,"00:00:00",0]
[null,null,null,null,null,null,null,null,null,null,null,"00:00:00",0]
[null,null,null,null,null,null,null,null,null,null,null,"00:00:00",0]
[null,null,null,null,null,null,null,null,null,null,null,"00:00:00",0]
[null,null,null,null,null,null,null,null,null,null,null,"00:00:00",0]
[null,null,null,null,null,null,null,null,null,null,null,"00:00:00",0]
[null,null,null,null,null,null,null,null,null,null,null,"00:00:00",0]
[null,null,null,null,null,null,null,null,null,null,null,"00:00:00",0]
[null,null,null,null,null,null,null,null,null,null,null,"00:00:00",0]
[null,null,null,null,null,null,null,null,null,null,null,"00:00:00",0]
[null,null,null,null,null,null,null,null,null,null,null,"00:00:00",0]
[null,null,null,null,null,null,null,null,null,null,null,"00:00:00",0]
[null,null,null,null,null,null,null,null,null,null,null,"00:00:00",0]
[null,null,null,null,null,null,null,null,null,null,null,"00:00:00",0]
[null,null,null,null,null,null,null,null,null,null,null,"00:00:00",0]
[null,null,null,null,null,null,null,null,null,null,null,"00:00:00",0]
[null,null,null,null,null,null,null,null,null,null,null,"00:00:00",0]
[null,null,null,null,null,null,null,null,null,null,null,"00:00:00",0]
[null,null,null,null,null,null,null,null,null,null,null,"00:00:00",0]
[null,null,null,null,null,null,null,null,null,null,null,"00:00:00",0]
[null,null,null,null,null,null,null,null,null,null,null,"00:00:00",0]
[null,null,null,null,null,null,null,null,null,null,null,"00:00:00",0]
[null,null,null,null,null,null,null,null,null,null,null,{"$f":"A362","v":"00:00:00"},{"$f":"B362","v":0}]
[null,null,null,null,null,null,null,null,null,null,null,"00:00:00",0]
[null,null,null,null,null,null,null,null,null,null,null,"00:00:00",0]
[null,null,null,null,null,null,null,null,null,null,null,"00:00:00",0]
[null,null,null,null,null,null,null,null,null,null,null,"00:00:00",0]
[null,null,null,null,null,null,null,null,null,null,null,"00:00:00",0]
[null,null,null,null,null,null,null,null,null,null,null,"00:00:00",0]
[null,null,null,null,null,null,null,null,null,null,null,"00:00:00",0]
[null,null,null,null,null,null,null,null,null,null,null,"00:00:00",0]
[null,null,null,null,null,null,null,null,null,null,null,"00:00:00",0]
[null,null,null,null,null,null,null,null,null,null,null,"00:00:00",0]
[null,null,null,null,null,null,null,null,null,null,null,"00:00:00",0]
[null,null,null,null,null,null,null,null,null,null,null,"00:00:00",0]
[null,null,null,null,null,null,null,null,null,null,null,"00:00:00",0]
[null,null,null,null,null,null,null,null,null,null,null,"00:00:00",0]
[null,null,null,null,null,null,null,null,null,null,null,"00:00:00",0]
[null,null,null,null,null,null,null,null,null,null,null,"00:00:00",0]
[null,null,null,null,null,null,null,null,null,null,null,"00:00:00",0]
[null,null,null,null,null,null,null,null,null,null,null,"00:00:00",0]
[null,null,null,null,null,null,null,null,null,null,null,"00:00:00",0]
[null,null,null,null,null,null,null,null,null,null,null,"00:00:00",0]
[null,null,null,null,null,null,null,null,null,null,null,"00:00:00",0]
[null,null,null,null,null,null,null,null,null,null,null,"00:00:00",0]
[null,null,null,null,null,null,null,null,null,null,null,"00:00:00",0]
[null,null,null,null,null,null,null,null,null,null,null,"00:00:00",0]
[null,null,null,null,null,null,null,null,null,null,null,"00:00:00",0]
[null,null,null,null,null,null,null,null,null,null,null,"00:00:00",0]
[null,null,null,null,null,null,null,null,null,null,null,"00:00:00",0]
[null,null,null,null,null,null,null,null,null,null,null,"00:00:00",0]
[null,null,null,null,null,null,null,null,null,null,null,"00:00:00",0]
[null,null,null,null,null,null,null,null,null,null,null,"00:00:00",0]
[null,null,null,null,null,null,null,null,null,null,null,"00:00:00",0]
[null,null,null,null,null,null,null,null,null,null,null,"00:00:00",0]
[null,null,null,null,null,null,null,null,null,null,null,"00:00:00",0]
[null,null,null,null,null,null,null,null,null,null,null,"00:00:00",0]
[null,null,null,null,null,null,null,null,null,null,null,"00:00:00",0]
[null,null,null,null,null,null,null,null,null,null,null,"00:00:00",0]
[null,null,null,null,null,null,null,null,null,null,null,"00:00:00",0]
[null,null,null,null,null,null,null,null,null,null,null,"00:00:00",0]
[null,null,null,null,null,null,null,null,null,null,null,"00:00:00",0]
[null,null,null,null,null,null,null,null,null,null,null,"00:00:00",0]
[null,null,null,null,null,null,null,null,null,null,null,"00:00:00",0]
[null,null,null,null,null,null,null,null,null,null,null,"00:00:00",0]
[null,null,null,null,null,null,null,null,null,null,null,"00:00:00",0]
[null,null,null,null,null,null,null,null,null,null,null,"00:00:00",0]
[null,null,null,null,null,null,null,null,null,null,null,"00:00:00",0]
[null,null,null,null,null,null,null,null,null,null,null,"00:00:00",0]
[null,null,null,null,null,null,null,null,null,null,null,"00:00:00",0]
[null,null,null,null,null,null,null,null,null,null,null,"00:00:00",0]
[null,null,null,null,null,null,null,null,null,null,null,"00:00:00",0]
[null,null,null,null,null,null,null,null,null,null,null,"00:00:00",0]
[null,null,null,null,null,null,null,null,null,null,null,"00:00:00",0]
[null,null,null,null,null,null,null,null,null,null,null,"00:00:00",0]
[null,null,null,null,null,null,null,null,null,null,null,"00:00:00",0]
[null,null,null,null,null,null,null,null,null,null,null,"00:00:00",0]
[null,null,null,null,null,null,null,null,null,null,null,"00:00:00",0]
[null,null,null,null,null,null,null,null,null,null,null,"00:00:00",0]
[null,null,null,null,null,null,null,null,null,null,null,"00:00:00",0]
[null,null,null,null,null,null,null,null,null,null,null,"00:00:00",0]
[null,null,null,null,null,null,null,null,null,null,null,"00:00:00",0]
[null,null,null,null,null,null,null,null,null,null,null,"00:00:00",0]
[null,null,null,null,null,null,null,null,null,null,null,"00:00:00",0]
[null,null,null,null,null,null,null,null,null,null,null,"00:00:00",0]
[null,null,null,null,null,null,null,null,null,null,null,"00:00:00",0]
[null,null,null,null,null,null,null,null,null,null,null,{"$f":"A426","v":"00:00:00"},{"$f":"B426","v":0}]
[null,null,null,null,null,null,null,null,null,null,null,"00:00:00",0]
[null,null,null,null,null,null,null,null,null,null,null,"00:00:00",0]
[null,null,null,null,null,null,null,null,null,null,null,"00:00:00",0]
[null,null,null,null,null,null,null,null,null,null,null,"00:00:00",0]
[null,null,null,null,null,null,null,null,null,null,null,"00:00:00",0]
[null,null,null,null,null,null,null,null,null,null,null,"00:00:00",0]
[null,null,null,null,null,null,null,null,null,null,null,"00:00:00",0]
[null,null,null,null,null,null,null,null,null,null,null,"00:00:00",0]
[null,null,null,null,null,null,null,null,null,null,null,"00:00:00",0]
[null,null,null,null,null,null,null,null,null,null,null,"00:00:00",0]
[null,null,null,null,null,null,null,null,null,null,null,"00:00:00",0]
[null,null,null,null,null,null,null,null,null,null,null,"00:00:00",0]
[null,null,null,null,null,null,null,null,null,null,null,"00:00:00",0]
[null,null,null,null,null,null,null,null,null,null,null,"00:00:00",0]
[null,null,null,null,null,null,null,null,null,null,null,"00:00:00",0]
[null,null,null,null,null,null,null,null,null,null,null,"00:00:00",0]
[null,null,null,null,null,null,null,null,null,null,null,"00:00:00",0]
[null,null,null,null,null,null,null,null,null,null,null,"00:00:00",0]
[null,null,null,null,null,null,null,null,null,null,null,"00:00:00",0]
[null,null,null,null,null,null,null,null,null,null,null,"00:00:00",0]
[null,null,null,null,null,null,null,null,null,null,null,"00:00:00",0]
[null,null,null,null,null,null,null,null,null,null,null,"00:00:00",0]
[null,null,null,null,null,null,null,null,null,null,null,"00:00:00",0]
[null,null,null,null,null,null,null,null,null,null,null,"00:00:00",0]
[null,null,null,null,null,null,null,null,null,null,null,"00:00:00",0]
[null,null,null,null,null,null,null,null,null,null,null,"00:00:00",0]
[null,null,null,null,null,null,null,null,null,null,null,"00:00:00",0]
[null,null,null,null,null,null,null,null,null,null,null,"00:00:00",0]
[null,null,null,null,null,null,null,null,null,null,null,"00:00:00",0]
[null,null,null,null,null,null,null,null,null,null,null,"00:00:00",0]
[null,null,null,null,null,null,null,null,null,null,null,"00:00:00",0]
[null,null,null,null,null,null,null,null,null,null,null,"00:00:00",0]
[null,null,null,null,null,null,null,null,null,null,null,"00:00:00",0]
[null,null,null,null,null,null,null,null,null,null,null,"00:00:00",0]
[null,null,null,null,null,null,null,null,null,null,null,"00:00:00",0]
[null,null,null,null,null,null,null,null,null,null,null,"00:00:00",0]
[null,null,null,null,null,null,null,null,null,null,null,"00:00:00",0]
[null,null,null,null,null,null,null,null,null,null,null,"00:00:00",0]
[null,null,null,null,null,null,null,null,null,null,null,"00:00:00",0]
[null,null,null,null,null,null,null,null,null,null,null,"00:00:00",0]
[null,null,null,null,null,null,null,null,null,null,null,"00:00:00",0]
[null,null,null,null,null,null,null,null,null,null,null,"00:00:00",0]
[null,null,null,null,null,null,null,null,null,null,null,"00:00:00",0]
[null,null,null,null,null,null,null,null,null,null,null,"00:00:00",0]
[null,null,null,null,null,null,null,null,null,null,null,"00:00:00",0]
[null,null,null,null,null,null,null,null,null,null,null,"00:00:00",0]
[null,null,null,null,null,null,null,null,null,null,null,"00:00:00",0]
[null,null,null,null,null,null,null,null,null,null,null,"00:00:00",0]
[null,null,null,null,null,null,null,null,null,null,null,"00:00:00",0]
[null,null,null,null,null,null,null,null,null,null,null,"00:00:00",0]
[null,null,null,null,null,null,null,null,null,null,null,"00:00:00",0]
[null,null,null,null,null,null,null,null,null,null,null,"00:00:00",0]
[null,null,null,null,null,null,null,null,null,null,null,"00:00:00",0]
[null,null,null,null,null,null,null,null,null,null,null,"00:00:00",0]
[null,null,null,null,null,null,null,null,null,null,null,"00:00:00",0]
[null,null,null,null,null,null,null,null,null,null,null,"00:00:00",0]
[null,null,null,null,null,null,null,null,null,null,null,"00:00:00",0]
[null,null,null,null,null,null,null,null,null,null,null,"00:00:00",0]
[null,null,null,null,null,null,null,null,null,null,null,"00:00:00",0]
[null,null,null,null,null,null,null,null,null,null,null,"00:00:00",0]
[null,null,null,null,null,null,null,null,null,null,null,"00:00:00",0]
[null,null,null,null,null,null,null,null,null,null,null,"00:00:00",0]
[null,null,null,null,null,null,null,null,null,null,null,"00:00:00",0]
[null,null,null,null,null,null,null,null,null,null,null,{"$f":"A490","v":"00:00:00"},{"$f":"B490","v":0}]
[null,null,null,null,null,null,null,null,null,null,null,"00:00:00",0]
[null,null,null,null,null,null,null,null,null,null,null,"00:00:00",0]
[null,null,null,null,null,null,null,null,null,null,null,"00:00:00",0]
[null,null,null,null,null,null,null,null,null,null,null,"00:00:00",0]
[null,null,null,null,null,null,null,null,null,null,null,"00:00:00",0]
[null,null,null,null,null,null,null,null,null,null,null,"00:00:00",0]
[null,null,null,null,null,null,null,null,null,null,null,"00:00:00",0]
[null,null,null,null,null,null,null,null,null,null,null,"00:00:00",0]

{"sheet":"Ingresar empleados","index":1,"n_rows":16,"n_cols":2,"rows_kept":16,"cut":false,"hidden":false,"merged":[[12,2,12,4],[13,2,13,4],[14,2,14,4],[15,2,15,4],[7,2,7,4],[8,2,8,4],[9,2,9,4],[10,2,10,4],[11,2,11,4]]}
[]
[]
[null,"Ingreso de nuevo empleado"]
[null," N° de Empleado"]
[null,"Fecha de Ingreso Empresa"]
[]
[null,"Información Personal"]
[null,"Nombre"]
[null,"Apellido"]
[null,"Fecha de Nacimiento"]
[null,"Lugar de nacimiento"]
[null,"Cédula"]
[null,"Sexo"]
[null,"Estado Civil"]
[null,"Correo electrónico"]
[null,"Teléfono"]

{"sheet":"Consultar empleados","index":2,"n_rows":18,"n_cols":12,"rows_kept":18,"cut":false,"hidden":false,"merged":[[14,3,14,5],[15,3,15,5],[16,3,16,5],[17,3,17,5],[9,3,9,5],[10,3,10,5],[11,3,11,5],[12,3,12,5],[13,3,13,5]]}
[]
[]
[null,"Consultar Información de  Empleado",null,null,null,null,null,null,null,null,21,21]
[]
[null,null,"Empleado"]
[null,null," N° de Empleado",{"$f":"IFERROR(IF(INDEX('Base de datos empleados'!$B$5:$B$498,MATCH('Consultar empleados'!$D$5,CONCATENATE('Base de datos empleados'!$D$5:$D$498,\" \",'Base de datos empleados'!$C$5:$C$498),0),1)=\"\",\"\",INDEX('Base de datos empleados'!$B$5:$B$498,MATCH('Consultar empleados'!$D$5,CONCATENATE('Base de datos empleados'!$D$5:$D$498,\" \",'Base de datos empleados'!$C$5:$C$498),0),1)),\"\")","v":""}]
[null,null,"Fecha de Ingreso",{"$f":"IFERROR(IF(INDEX('Base de datos empleados'!$A$5:$A$500,MATCH('Consultar empleados'!$D$5,CONCATENATE('Base de datos empleados'!$D$5:$D$500,\" \",'Base de datos empleados'!$C$5:$C$500),0),1)=\"\",\"\",INDEX('Base de datos empleados'!$A$5:$A$500,MATCH('Consultar empleados'!$D$5,CONCATENATE('Base de datos empleados'!$D$5:$D$500,\" \",'Base de datos empleados'!$C$5:$C$500),0),1)),\"\")","v":""}]
[]
[]
[null,null,"Nombre"]
[null,null,"Apellido"]
[null,null,"Fecha de Nacimiento"]
[null,null,"Lugar de nacimiento"]
[null,null,"Cédula"]
[null,null,"Sexo"]
[null,null,"Estado Civil"]
[null,null,"Correo electrónico"]
[null,null,"Teléfono"]

{"sheet":"Aux","index":3,"n_rows":551,"n_cols":1,"rows_kept":551,"cut":false,"hidden":true,"merged":[]}
[]
[{"$f":"IF(OR('Base de datos empleados'!D5=\"\",'Base de datos empleados'!C5=\"\"),\"\",'Base de datos empleados'!D5&\" \"&'Base de datos empleados'!C5)","v":""}]
[{"$f":"IF(OR('Base de datos empleados'!D6=\"\",'Base de datos empleados'!C6=\"\"),\"\",'Base de datos empleados'!D6&\" \"&'Base de datos empleados'!C6)","v":""}]
[{"$f":"IF(OR('Base de datos empleados'!D7=\"\",'Base de datos empleados'!C7=\"\"),\"\",'Base de datos empleados'!D7&\" \"&'Base de datos empleados'!C7)","v":""}]
[{"$f":"IF(OR('Base de datos empleados'!D8=\"\",'Base de datos empleados'!C8=\"\"),\"\",'Base de datos empleados'!D8&\" \"&'Base de datos empleados'!C8)","v":""}]
[{"$f":"IF(OR('Base de datos empleados'!D9=\"\",'Base de datos empleados'!C9=\"\"),\"\",'Base de datos empleados'!D9&\" \"&'Base de datos empleados'!C9)","v":""}]
[{"$f":"IF(OR('Base de datos empleados'!D10=\"\",'Base de datos empleados'!C10=\"\"),\"\",'Base de datos empleados'!D10&\" \"&'Base de datos empleados'!C10)","v":""}]
[{"$f":"IF(OR('Base de datos empleados'!D11=\"\",'Base de datos empleados'!C11=\"\"),\"\",'Base de datos empleados'!D11&\" \"&'Base de datos empleados'!C11)","v":""}]
[{"$f":"IF(OR('Base de datos empleados'!D12=\"\",'Base de datos empleados'!C12=\"\"),\"\",'Base de datos empleados'!D12&\" \"&'Base de datos empleados'!C12)","v":""}]
[{"$f":"IF(OR('Base de datos empleados'!D13=\"\",'Base de datos empleados'!C13=\"\"),\"\",'Base de datos empleados'!D13&\" \"&'Base de datos empleados'!C13)","v":""}]
[{"$f":"IF(OR('Base de datos empleados'!D14=\"\",'Base de datos empleados'!C14=\"\"),\"\",'Base de datos empleados'!D14&\" \"&'Base de datos empleados'!C14)","v":""}]
[{"$f":"IF(OR('Base de datos empleados'!D15=\"\",'Base de datos empleados'!C15=\"\"),\"\",'Base de datos empleados'!D15&\" \"&'Base de datos empleados'!C15)","v":""}]
[{"$f":"IF(OR('Base de datos empleados'!D16=\"\",'Base de datos empleados'!C16=\"\"),\"\",'Base de datos empleados'!D16&\" \"&'Base de datos empleados'!C16)","v":""}]
[{"$f":"IF(OR('Base de datos empleados'!D17=\"\",'Base de datos empleados'!C17=\"\"),\"\",'Base de datos empleados'!D17&\" \"&'Base de datos empleados'!C17)","v":""}]
[{"$f":"IF(OR('Base de datos empleados'!D18=\"\",'Base de datos empleados'!C18=\"\"),\"\",'Base de datos empleados'!D18&\" \"&'Base de datos empleados'!C18)","v":""}]
[{"$f":"IF(OR('Base de datos empleados'!D19=\"\",'Base de datos empleados'!C19=\"\"),\"\",'Base de datos empleados'!D19&\" \"&'Base de datos empleados'!C19)","v":""}]
[{"$f":"IF(OR('Base de datos empleados'!D20=\"\",'Base de datos empleados'!C20=\"\"),\"\",'Base de datos empleados'!D20&\" \"&'Base de datos empleados'!C20)","v":""}]
[{"$f":"IF(OR('Base de datos empleados'!D21=\"\",'Base de datos empleados'!C21=\"\"),\"\",'Base de datos empleados'!D21&\" \"&'Base de datos empleados'!C21)","v":""}]
[{"$f":"IF(OR('Base de datos empleados'!D22=\"\",'Base de datos empleados'!C22=\"\"),\"\",'Base de datos empleados'!D22&\" \"&'Base de datos empleados'!C22)","v":""}]
[{"$f":"IF(OR('Base de datos empleados'!D23=\"\",'Base de datos empleados'!C23=\"\"),\"\",'Base de datos empleados'!D23&\" \"&'Base de datos empleados'!C23)","v":""}]
[{"$f":"IF(OR('Base de datos empleados'!D24=\"\",'Base de datos empleados'!C24=\"\"),\"\",'Base de datos empleados'!D24&\" \"&'Base de datos empleados'!C24)","v":""}]
[{"$f":"IF(OR('Base de datos empleados'!D25=\"\",'Base de datos empleados'!C25=\"\"),\"\",'Base de datos empleados'!D25&\" \"&'Base de datos empleados'!C25)","v":""}]
[{"$f":"IF(OR('Base de datos empleados'!D26=\"\",'Base de datos empleados'!C26=\"\"),\"\",'Base de datos empleados'!D26&\" \"&'Base de datos empleados'!C26)","v":""}]
[{"$f":"IF(OR('Base de datos empleados'!D27=\"\",'Base de datos empleados'!C27=\"\"),\"\",'Base de datos empleados'!D27&\" \"&'Base de datos empleados'!C27)","v":""}]
[{"$f":"IF(OR('Base de datos empleados'!D28=\"\",'Base de datos empleados'!C28=\"\"),\"\",'Base de datos empleados'!D28&\" \"&'Base de datos empleados'!C28)","v":""}]
[{"$f":"IF(OR('Base de datos empleados'!D29=\"\",'Base de datos empleados'!C29=\"\"),\"\",'Base de datos empleados'!D29&\" \"&'Base de datos empleados'!C29)","v":""}]
[{"$f":"IF(OR('Base de datos empleados'!D30=\"\",'Base de datos empleados'!C30=\"\"),\"\",'Base de datos empleados'!D30&\" \"&'Base de datos empleados'!C30)","v":""}]
[{"$f":"IF(OR('Base de datos empleados'!D31=\"\",'Base de datos empleados'!C31=\"\"),\"\",'Base de datos empleados'!D31&\" \"&'Base de datos empleados'!C31)","v":""}]
[{"$f":"IF(OR('Base de datos empleados'!D32=\"\",'Base de datos empleados'!C32=\"\"),\"\",'Base de datos empleados'!D32&\" \"&'Base de datos empleados'!C32)","v":""}]
[{"$f":"IF(OR('Base de datos empleados'!D33=\"\",'Base de datos empleados'!C33=\"\"),\"\",'Base de datos empleados'!D33&\" \"&'Base de datos empleados'!C33)","v":""}]
[{"$f":"IF(OR('Base de datos empleados'!D34=\"\",'Base de datos empleados'!C34=\"\"),\"\",'Base de datos empleados'!D34&\" \"&'Base de datos empleados'!C34)","v":""}]
[{"$f":"IF(OR('Base de datos empleados'!D35=\"\",'Base de datos empleados'!C35=\"\"),\"\",'Base de datos empleados'!D35&\" \"&'Base de datos empleados'!C35)","v":""}]
[{"$f":"IF(OR('Base de datos empleados'!D36=\"\",'Base de datos empleados'!C36=\"\"),\"\",'Base de datos empleados'!D36&\" \"&'Base de datos empleados'!C36)","v":""}]
[{"$f":"IF(OR('Base de datos empleados'!D37=\"\",'Base de datos empleados'!C37=\"\"),\"\",'Base de datos empleados'!D37&\" \"&'Base de datos empleados'!C37)","v":""}]
[{"$f":"IF(OR('Base de datos empleados'!D38=\"\",'Base de datos empleados'!C38=\"\"),\"\",'Base de datos empleados'!D38&\" \"&'Base de datos empleados'!C38)","v":""}]
[{"$f":"IF(OR('Base de datos empleados'!D39=\"\",'Base de datos empleados'!C39=\"\"),\"\",'Base de datos empleados'!D39&\" \"&'Base de datos empleados'!C39)","v":""}]
[{"$f":"IF(OR('Base de datos empleados'!D40=\"\",'Base de datos empleados'!C40=\"\"),\"\",'Base de datos empleados'!D40&\" \"&'Base de datos empleados'!C40)","v":""}]
[{"$f":"IF(OR('Base de datos empleados'!D41=\"\",'Base de datos empleados'!C41=\"\"),\"\",'Base de datos empleados'!D41&\" \"&'Base de datos empleados'!C41)","v":""}]
[{"$f":"IF(OR('Base de datos empleados'!D42=\"\",'Base de datos empleados'!C42=\"\"),\"\",'Base de datos empleados'!D42&\" \"&'Base de datos empleados'!C42)","v":""}]
[{"$f":"IF(OR('Base de datos empleados'!D43=\"\",'Base de datos empleados'!C43=\"\"),\"\",'Base de datos empleados'!D43&\" \"&'Base de datos empleados'!C43)","v":""}]
[{"$f":"IF(OR('Base de datos empleados'!D44=\"\",'Base de datos empleados'!C44=\"\"),\"\",'Base de datos empleados'!D44&\" \"&'Base de datos empleados'!C44)","v":""}]
[{"$f":"IF(OR('Base de datos empleados'!D45=\"\",'Base de datos empleados'!C45=\"\"),\"\",'Base de datos empleados'!D45&\" \"&'Base de datos empleados'!C45)","v":""}]
[{"$f":"IF(OR('Base de datos empleados'!D46=\"\",'Base de datos empleados'!C46=\"\"),\"\",'Base de datos empleados'!D46&\" \"&'Base de datos empleados'!C46)","v":""}]
[{"$f":"IF(OR('Base de datos empleados'!D47=\"\",'Base de datos empleados'!C47=\"\"),\"\",'Base de datos empleados'!D47&\" \"&'Base de datos empleados'!C47)","v":""}]
[{"$f":"IF(OR('Base de datos empleados'!D48=\"\",'Base de datos empleados'!C48=\"\"),\"\",'Base de datos empleados'!D48&\" \"&'Base de datos empleados'!C48)","v":""}]
[{"$f":"IF(OR('Base de datos empleados'!D49=\"\",'Base de datos empleados'!C49=\"\"),\"\",'Base de datos empleados'!D49&\" \"&'Base de datos empleados'!C49)","v":""}]
[{"$f":"IF(OR('Base de datos empleados'!D50=\"\",'Base de datos empleados'!C50=\"\"),\"\",'Base de datos empleados'!D50&\" \"&'Base de datos empleados'!C50)","v":""}]
[{"$f":"IF(OR('Base de datos empleados'!D51=\"\",'Base de datos empleados'!C51=\"\"),\"\",'Base de datos empleados'!D51&\" \"&'Base de datos empleados'!C51)","v":""}]
[{"$f":"IF(OR('Base de datos empleados'!D52=\"\",'Base de datos empleados'!C52=\"\"),\"\",'Base de datos empleados'!D52&\" \"&'Base de datos empleados'!C52)","v":""}]
[{"$f":"IF(OR('Base de datos empleados'!D53=\"\",'Base de datos empleados'!C53=\"\"),\"\",'Base de datos empleados'!D53&\" \"&'Base de datos empleados'!C53)","v":""}]
[{"$f":"IF(OR('Base de datos empleados'!D54=\"\",'Base de datos empleados'!C54=\"\"),\"\",'Base de datos empleados'!D54&\" \"&'Base de datos empleados'!C54)","v":""}]
[{"$f":"IF(OR('Base de datos empleados'!D55=\"\",'Base de datos empleados'!C55=\"\"),\"\",'Base de datos empleados'!D55&\" \"&'Base de datos empleados'!C55)","v":""}]
[{"$f":"IF(OR('Base de datos empleados'!D56=\"\",'Base de datos empleados'!C56=\"\"),\"\",'Base de datos empleados'!D56&\" \"&'Base de datos empleados'!C56)","v":""}]
[{"$f":"IF(OR('Base de datos empleados'!D57=\"\",'Base de datos empleados'!C57=\"\"),\"\",'Base de datos empleados'!D57&\" \"&'Base de datos empleados'!C57)","v":""}]
[{"$f":"IF(OR('Base de datos empleados'!D58=\"\",'Base de datos empleados'!C58=\"\"),\"\",'Base de datos empleados'!D58&\" \"&'Base de datos empleados'!C58)","v":""}]
[{"$f":"IF(OR('Base de datos empleados'!D59=\"\",'Base de datos empleados'!C59=\"\"),\"\",'Base de datos empleados'!D59&\" \"&'Base de datos empleados'!C59)","v":""}]
[{"$f":"IF(OR('Base de datos empleados'!D60=\"\",'Base de datos empleados'!C60=\"\"),\"\",'Base de datos empleados'!D60&\" \"&'Base de datos empleados'!C60)","v":""}]
[{"$f":"IF(OR('Base de datos empleados'!D61=\"\",'Base de datos empleados'!C61=\"\"),\"\",'Base de datos empleados'!D61&\" \"&'Base de datos empleados'!C61)","v":""}]
[{"$f":"IF(OR('Base de datos empleados'!D62=\"\",'Base de datos empleados'!C62=\"\"),\"\",'Base de datos empleados'!D62&\" \"&'Base de datos empleados'!C62)","v":""}]
[{"$f":"IF(OR('Base de datos empleados'!D63=\"\",'Base de datos empleados'!C63=\"\"),\"\",'Base de datos empleados'!D63&\" \"&'Base de datos empleados'!C63)","v":""}]
[{"$f":"IF(OR('Base de datos empleados'!D64=\"\",'Base de datos empleados'!C64=\"\"),\"\",'Base de datos empleados'!D64&\" \"&'Base de datos empleados'!C64)","v":""}]
[{"$f":"IF(OR('Base de datos empleados'!D65=\"\",'Base de datos empleados'!C65=\"\"),\"\",'Base de datos empleados'!D65&\" \"&'Base de datos empleados'!C65)","v":""}]
[{"$f":"IF(OR('Base de datos empleados'!D66=\"\",'Base de datos empleados'!C66=\"\"),\"\",'Base de datos empleados'!D66&\" \"&'Base de datos empleados'!C66)","v":""}]
[{"$f":"IF(OR('Base de datos empleados'!D67=\"\",'Base de datos empleados'!C67=\"\"),\"\",'Base de datos empleados'!D67&\" \"&'Base de datos empleados'!C67)","v":""}]
[{"$f":"IF(OR('Base de datos empleados'!D68=\"\",'Base de datos empleados'!C68=\"\"),\"\",'Base de datos empleados'!D68&\" \"&'Base de datos empleados'!C68)","v":""}]
[{"$f":"IF(OR('Base de datos empleados'!D69=\"\",'Base de datos empleados'!C69=\"\"),\"\",'Base de datos empleados'!D69&\" \"&'Base de datos empleados'!C69)","v":""}]
[{"$f":"IF(OR('Base de datos empleados'!D70=\"\",'Base de datos empleados'!C70=\"\"),\"\",'Base de datos empleados'!D70&\" \"&'Base de datos empleados'!C70)","v":""}]
[{"$f":"IF(OR('Base de datos empleados'!D71=\"\",'Base de datos empleados'!C71=\"\"),\"\",'Base de datos empleados'!D71&\" \"&'Base de datos empleados'!C71)","v":""}]
[{"$f":"IF(OR('Base de datos empleados'!D72=\"\",'Base de datos empleados'!C72=\"\"),\"\",'Base de datos empleados'!D72&\" \"&'Base de datos empleados'!C72)","v":""}]
[{"$f":"IF(OR('Base de datos empleados'!D73=\"\",'Base de datos empleados'!C73=\"\"),\"\",'Base de datos empleados'!D73&\" \"&'Base de datos empleados'!C73)","v":""}]
[{"$f":"IF(OR('Base de datos empleados'!D74=\"\",'Base de datos empleados'!C74=\"\"),\"\",'Base de datos empleados'!D74&\" \"&'Base de datos empleados'!C74)","v":""}]
[{"$f":"IF(OR('Base de datos empleados'!D75=\"\",'Base de datos empleados'!C75=\"\"),\"\",'Base de datos empleados'!D75&\" \"&'Base de datos empleados'!C75)","v":""}]
[{"$f":"IF(OR('Base de datos empleados'!D76=\"\",'Base de datos empleados'!C76=\"\"),\"\",'Base de datos empleados'!D76&\" \"&'Base de datos empleados'!C76)","v":""}]
[{"$f":"IF(OR('Base de datos empleados'!D77=\"\",'Base de datos empleados'!C77=\"\"),\"\",'Base de datos empleados'!D77&\" \"&'Base de datos empleados'!C77)","v":""}]
[{"$f":"IF(OR('Base de datos empleados'!D78=\"\",'Base de datos empleados'!C78=\"\"),\"\",'Base de datos empleados'!D78&\" \"&'Base de datos empleados'!C78)","v":""}]
[{"$f":"IF(OR('Base de datos empleados'!D79=\"\",'Base de datos empleados'!C79=\"\"),\"\",'Base de datos empleados'!D79&\" \"&'Base de datos empleados'!C79)","v":""}]
[{"$f":"IF(OR('Base de datos empleados'!D80=\"\",'Base de datos empleados'!C80=\"\"),\"\",'Base de datos empleados'!D80&\" \"&'Base de datos empleados'!C80)","v":""}]
[{"$f":"IF(OR('Base de datos empleados'!D81=\"\",'Base de datos empleados'!C81=\"\"),\"\",'Base de datos empleados'!D81&\" \"&'Base de datos empleados'!C81)","v":""}]
[{"$f":"IF(OR('Base de datos empleados'!D82=\"\",'Base de datos empleados'!C82=\"\"),\"\",'Base de datos empleados'!D82&\" \"&'Base de datos empleados'!C82)","v":""}]
[{"$f":"IF(OR('Base de datos empleados'!D83=\"\",'Base de datos empleados'!C83=\"\"),\"\",'Base de datos empleados'!D83&\" \"&'Base de datos empleados'!C83)","v":""}]
[{"$f":"IF(OR('Base de datos empleados'!D84=\"\",'Base de datos empleados'!C84=\"\"),\"\",'Base de datos empleados'!D84&\" \"&'Base de datos empleados'!C84)","v":""}]
[{"$f":"IF(OR('Base de datos empleados'!D85=\"\",'Base de datos empleados'!C85=\"\"),\"\",'Base de datos empleados'!D85&\" \"&'Base de datos empleados'!C85)","v":""}]
[{"$f":"IF(OR('Base de datos empleados'!D86=\"\",'Base de datos empleados'!C86=\"\"),\"\",'Base de datos empleados'!D86&\" \"&'Base de datos empleados'!C86)","v":""}]
[{"$f":"IF(OR('Base de datos empleados'!D87=\"\",'Base de datos empleados'!C87=\"\"),\"\",'Base de datos empleados'!D87&\" \"&'Base de datos empleados'!C87)","v":""}]
[{"$f":"IF(OR('Base de datos empleados'!D88=\"\",'Base de datos empleados'!C88=\"\"),\"\",'Base de datos empleados'!D88&\" \"&'Base de datos empleados'!C88)","v":""}]
[{"$f":"IF(OR('Base de datos empleados'!D89=\"\",'Base de datos empleados'!C89=\"\"),\"\",'Base de datos empleados'!D89&\" \"&'Base de datos empleados'!C89)","v":""}]
[{"$f":"IF(OR('Base de datos empleados'!D90=\"\",'Base de datos empleados'!C90=\"\"),\"\",'Base de datos empleados'!D90&\" \"&'Base de datos empleados'!C90)","v":""}]
[{"$f":"IF(OR('Base de datos empleados'!D91=\"\",'Base de datos empleados'!C91=\"\"),\"\",'Base de datos empleados'!D91&\" \"&'Base de datos empleados'!C91)","v":""}]
[{"$f":"IF(OR('Base de datos empleados'!D92=\"\",'Base de datos empleados'!C92=\"\"),\"\",'Base de datos empleados'!D92&\" \"&'Base de datos empleados'!C92)","v":""}]
[{"$f":"IF(OR('Base de datos empleados'!D93=\"\",'Base de datos empleados'!C93=\"\"),\"\",'Base de datos empleados'!D93&\" \"&'Base de datos empleados'!C93)","v":""}]
[{"$f":"IF(OR('Base de datos empleados'!D94=\"\",'Base de datos empleados'!C94=\"\"),\"\",'Base de datos empleados'!D94&\" \"&'Base de datos empleados'!C94)","v":""}]
[{"$f":"IF(OR('Base de datos empleados'!D95=\"\",'Base de datos empleados'!C95=\"\"),\"\",'Base de datos empleados'!D95&\" \"&'Base de datos empleados'!C95)","v":""}]
[{"$f":"IF(OR('Base de datos empleados'!D96=\"\",'Base de datos empleados'!C96=\"\"),\"\",'Base de datos empleados'!D96&\" \"&'Base de datos empleados'!C96)","v":""}]
[{"$f":"IF(OR('Base de datos empleados'!D97=\"\",'Base de datos empleados'!C97=\"\"),\"\",'Base de datos empleados'!D97&\" \"&'Base de datos empleados'!C97)","v":""}]
[{"$f":"IF(OR('Base de datos empleados'!D98=\"\",'Base de datos empleados'!C98=\"\"),\"\",'Base de datos empleados'!D98&\" \"&'Base de datos empleados'!C98)","v":""}]
[{"$f":"IF(OR('Base de datos empleados'!D99=\"\",'Base de datos empleados'!C99=\"\"),\"\",'Base de datos empleados'!D99&\" \"&'Base de datos empleados'!C99)","v":""}]
[{"$f":"IF(OR('Base de datos empleados'!D100=\"\",'Base de datos empleados'!C100=\"\"),\"\",'Base de datos empleados'!D100&\" \"&'Base de datos empleados'!C100)","v":""}]
[{"$f":"IF(OR('Base de datos empleados'!D101=\"\",'Base de datos empleados'!C101=\"\"),\"\",'Base de datos empleados'!D101&\" \"&'Base de datos empleados'!C101)","v":""}]
[{"$f":"IF(OR('Base de datos empleados'!D102=\"\",'Base de datos empleados'!C102=\"\"),\"\",'Base de datos empleados'!D102&\" \"&'Base de datos empleados'!C102)","v":""}]
[{"$f":"IF(OR('Base de datos empleados'!D103=\"\",'Base de datos empleados'!C103=\"\"),\"\",'Base de datos empleados'!D103&\" \"&'Base de datos empleados'!C103)","v":""}]
[{"$f":"IF(OR('Base de datos empleados'!D104=\"\",'Base de datos empleados'!C104=\"\"),\"\",'Base de datos empleados'!D104&\" \"&'Base de datos empleados'!C104)","v":""}]
[{"$f":"IF(OR('Base de datos empleados'!D105=\"\",'Base de datos empleados'!C105=\"\"),\"\",'Base de datos empleados'!D105&\" \"&'Base de datos empleados'!C105)","v":""}]
[{"$f":"IF(OR('Base de datos empleados'!D106=\"\",'Base de datos empleados'!C106=\"\"),\"\",'Base de datos empleados'!D106&\" \"&'Base de datos empleados'!C106)","v":""}]
[{"$f":"IF(OR('Base de datos empleados'!D107=\"\",'Base de datos empleados'!C107=\"\"),\"\",'Base de datos empleados'!D107&\" \"&'Base de datos empleados'!C107)","v":""}]
[{"$f":"IF(OR('Base de datos empleados'!D108=\"\",'Base de datos empleados'!C108=\"\"),\"\",'Base de datos empleados'!D108&\" \"&'Base de datos empleados'!C108)","v":""}]
[{"$f":"IF(OR('Base de datos empleados'!D109=\"\",'Base de datos empleados'!C109=\"\"),\"\",'Base de datos empleados'!D109&\" \"&'Base de datos empleados'!C109)","v":""}]
[{"$f":"IF(OR('Base de datos empleados'!D110=\"\",'Base de datos empleados'!C110=\"\"),\"\",'Base de datos empleados'!D110&\" \"&'Base de datos empleados'!C110)","v":""}]
[{"$f":"IF(OR('Base de datos empleados'!D111=\"\",'Base de datos empleados'!C111=\"\"),\"\",'Base de datos empleados'!D111&\" \"&'Base de datos empleados'!C111)","v":""}]
[{"$f":"IF(OR('Base de datos empleados'!D112=\"\",'Base de datos empleados'!C112=\"\"),\"\",'Base de datos empleados'!D112&\" \"&'Base de datos empleados'!C112)","v":""}]
[{"$f":"IF(OR('Base de datos empleados'!D113=\"\",'Base de datos empleados'!C113=\"\"),\"\",'Base de datos empleados'!D113&\" \"&'Base de datos empleados'!C113)","v":""}]
[{"$f":"IF(OR('Base de datos empleados'!D114=\"\",'Base de datos empleados'!C114=\"\"),\"\",'Base de datos empleados'!D114&\" \"&'Base de datos empleados'!C114)","v":""}]
[{"$f":"IF(OR('Base de datos empleados'!D115=\"\",'Base de datos empleados'!C115=\"\"),\"\",'Base de datos empleados'!D115&\" \"&'Base de datos empleados'!C115)","v":""}]
[{"$f":"IF(OR('Base de datos empleados'!D116=\"\",'Base de datos empleados'!C116=\"\"),\"\",'Base de datos empleados'!D116&\" \"&'Base de datos empleados'!C116)","v":""}]
[{"$f":"IF(OR('Base de datos empleados'!D117=\"\",'Base de datos empleados'!C117=\"\"),\"\",'Base de datos empleados'!D117&\" \"&'Base de datos empleados'!C117)","v":""}]
[{"$f":"IF(OR('Base de datos empleados'!D118=\"\",'Base de datos empleados'!C118=\"\"),\"\",'Base de datos empleados'!D118&\" \"&'Base de datos empleados'!C118)","v":""}]
[{"$f":"IF(OR('Base de datos empleados'!D119=\"\",'Base de datos empleados'!C119=\"\"),\"\",'Base de datos empleados'!D119&\" \"&'Base de datos empleados'!C119)","v":""}]
[{"$f":"IF(OR('Base de datos empleados'!D120=\"\",'Base de datos empleados'!C120=\"\"),\"\",'Base de datos empleados'!D120&\" \"&'Base de datos empleados'!C120)","v":""}]
[{"$f":"IF(OR('Base de datos empleados'!D121=\"\",'Base de datos empleados'!C121=\"\"),\"\",'Base de datos empleados'!D121&\" \"&'Base de datos empleados'!C121)","v":""}]
[{"$f":"IF(OR('Base de datos empleados'!D122=\"\",'Base de datos empleados'!C122=\"\"),\"\",'Base de datos empleados'!D122&\" \"&'Base de datos empleados'!C122)","v":""}]
[{"$f":"IF(OR('Base de datos empleados'!D123=\"\",'Base de datos empleados'!C123=\"\"),\"\",'Base de datos empleados'!D123&\" \"&'Base de datos empleados'!C123)","v":""}]
[{"$f":"IF(OR('Base de datos empleados'!D124=\"\",'Base de datos empleados'!C124=\"\"),\"\",'Base de datos empleados'!D124&\" \"&'Base de datos empleados'!C124)","v":""}]
[{"$f":"IF(OR('Base de datos empleados'!D125=\"\",'Base de datos empleados'!C125=\"\"),\"\",'Base de datos empleados'!D125&\" \"&'Base de datos empleados'!C125)","v":""}]
[{"$f":"IF(OR('Base de datos empleados'!D126=\"\",'Base de datos empleados'!C126=\"\"),\"\",'Base de datos empleados'!D126&\" \"&'Base de datos empleados'!C126)","v":""}]
[{"$f":"IF(OR('Base de datos empleados'!D127=\"\",'Base de datos empleados'!C127=\"\"),\"\",'Base de datos empleados'!D127&\" \"&'Base de datos empleados'!C127)","v":""}]
[{"$f":"IF(OR('Base de datos empleados'!D128=\"\",'Base de datos empleados'!C128=\"\"),\"\",'Base de datos empleados'!D128&\" \"&'Base de datos empleados'!C128)","v":""}]
[{"$f":"IF(OR('Base de datos empleados'!D129=\"\",'Base de datos empleados'!C129=\"\"),\"\",'Base de datos empleados'!D129&\" \"&'Base de datos empleados'!C129)","v":""}]
[{"$f":"IF(OR('Base de datos empleados'!D130=\"\",'Base de datos empleados'!C130=\"\"),\"\",'Base de datos empleados'!D130&\" \"&'Base de datos empleados'!C130)","v":""}]
[{"$f":"IF(OR('Base de datos empleados'!D131=\"\",'Base de datos empleados'!C131=\"\"),\"\",'Base de datos empleados'!D131&\" \"&'Base de datos empleados'!C131)","v":""}]
[{"$f":"IF(OR('Base de datos empleados'!D132=\"\",'Base de datos empleados'!C132=\"\"),\"\",'Base de datos empleados'!D132&\" \"&'Base de datos empleados'!C132)","v":""}]
[{"$f":"IF(OR('Base de datos empleados'!D133=\"\",'Base de datos empleados'!C133=\"\"),\"\",'Base de datos empleados'!D133&\" \"&'Base de datos empleados'!C133)","v":""}]
[{"$f":"IF(OR('Base de datos empleados'!D134=\"\",'Base de datos empleados'!C134=\"\"),\"\",'Base de datos empleados'!D134&\" \"&'Base de datos empleados'!C134)","v":""}]
[{"$f":"IF(OR('Base de datos empleados'!D135=\"\",'Base de datos empleados'!C135=\"\"),\"\",'Base de datos empleados'!D135&\" \"&'Base de datos empleados'!C135)","v":""}]
[{"$f":"IF(OR('Base de datos empleados'!D136=\"\",'Base de datos empleados'!C136=\"\"),\"\",'Base de datos empleados'!D136&\" \"&'Base de datos empleados'!C136)","v":""}]
[{"$f":"IF(OR('Base de datos empleados'!D137=\"\",'Base de datos empleados'!C137=\"\"),\"\",'Base de datos empleados'!D137&\" \"&'Base de datos empleados'!C137)","v":""}]
[{"$f":"IF(OR('Base de datos empleados'!D138=\"\",'Base de datos empleados'!C138=\"\"),\"\",'Base de datos empleados'!D138&\" \"&'Base de datos empleados'!C138)","v":""}]
[{"$f":"IF(OR('Base de datos empleados'!D139=\"\",'Base de datos empleados'!C139=\"\"),\"\",'Base de datos empleados'!D139&\" \"&'Base de datos empleados'!C139)","v":""}]
[{"$f":"IF(OR('Base de datos empleados'!D140=\"\",'Base de datos empleados'!C140=\"\"),\"\",'Base de datos empleados'!D140&\" \"&'Base de datos empleados'!C140)","v":""}]
[{"$f":"IF(OR('Base de datos empleados'!D141=\"\",'Base de datos empleados'!C141=\"\"),\"\",'Base de datos empleados'!D141&\" \"&'Base de datos empleados'!C141)","v":""}]
[{"$f":"IF(OR('Base de datos empleados'!D142=\"\",'Base de datos empleados'!C142=\"\"),\"\",'Base de datos empleados'!D142&\" \"&'Base de datos empleados'!C142)","v":""}]
[{"$f":"IF(OR('Base de datos empleados'!D143=\"\",'Base de datos empleados'!C143=\"\"),\"\",'Base de datos empleados'!D143&\" \"&'Base de datos empleados'!C143)","v":""}]
[{"$f":"IF(OR('Base de datos empleados'!D144=\"\",'Base de datos empleados'!C144=\"\"),\"\",'Base de datos empleados'!D144&\" \"&'Base de datos empleados'!C144)","v":""}]
[{"$f":"IF(OR('Base de datos empleados'!D145=\"\",'Base de datos empleados'!C145=\"\"),\"\",'Base de datos empleados'!D145&\" \"&'Base de datos empleados'!C145)","v":""}]
[{"$f":"IF(OR('Base de datos empleados'!D146=\"\",'Base de datos empleados'!C146=\"\"),\"\",'Base de datos empleados'!D146&\" \"&'Base de datos empleados'!C146)","v":""}]
[{"$f":"IF(OR('Base de datos empleados'!D147=\"\",'Base de datos empleados'!C147=\"\"),\"\",'Base de datos empleados'!D147&\" \"&'Base de datos empleados'!C147)","v":""}]
[{"$f":"IF(OR('Base de datos empleados'!D148=\"\",'Base de datos empleados'!C148=\"\"),\"\",'Base de datos empleados'!D148&\" \"&'Base de datos empleados'!C148)","v":""}]
[{"$f":"IF(OR('Base de datos empleados'!D149=\"\",'Base de datos empleados'!C149=\"\"),\"\",'Base de datos empleados'!D149&\" \"&'Base de datos empleados'!C149)","v":""}]
[{"$f":"IF(OR('Base de datos empleados'!D150=\"\",'Base de datos empleados'!C150=\"\"),\"\",'Base de datos empleados'!D150&\" \"&'Base de datos empleados'!C150)","v":""}]
[{"$f":"IF(OR('Base de datos empleados'!D151=\"\",'Base de datos empleados'!C151=\"\"),\"\",'Base de datos empleados'!D151&\" \"&'Base de datos empleados'!C151)","v":""}]
[{"$f":"IF(OR('Base de datos empleados'!D152=\"\",'Base de datos empleados'!C152=\"\"),\"\",'Base de datos empleados'!D152&\" \"&'Base de datos empleados'!C152)","v":""}]
[{"$f":"IF(OR('Base de datos empleados'!D153=\"\",'Base de datos empleados'!C153=\"\"),\"\",'Base de datos empleados'!D153&\" \"&'Base de datos empleados'!C153)","v":""}]
[{"$f":"IF(OR('Base de datos empleados'!D154=\"\",'Base de datos empleados'!C154=\"\"),\"\",'Base de datos empleados'!D154&\" \"&'Base de datos empleados'!C154)","v":""}]
[{"$f":"IF(OR('Base de datos empleados'!D155=\"\",'Base de datos empleados'!C155=\"\"),\"\",'Base de datos empleados'!D155&\" \"&'Base de datos empleados'!C155)","v":""}]
[{"$f":"IF(OR('Base de datos empleados'!D156=\"\",'Base de datos empleados'!C156=\"\"),\"\",'Base de datos empleados'!D156&\" \"&'Base de datos empleados'!C156)","v":""}]
[{"$f":"IF(OR('Base de datos empleados'!D157=\"\",'Base de datos empleados'!C157=\"\"),\"\",'Base de datos empleados'!D157&\" \"&'Base de datos empleados'!C157)","v":""}]
[{"$f":"IF(OR('Base de datos empleados'!D158=\"\",'Base de datos empleados'!C158=\"\"),\"\",'Base de datos empleados'!D158&\" \"&'Base de datos empleados'!C158)","v":""}]
[{"$f":"IF(OR('Base de datos empleados'!D159=\"\",'Base de datos empleados'!C159=\"\"),\"\",'Base de datos empleados'!D159&\" \"&'Base de datos empleados'!C159)","v":""}]
[{"$f":"IF(OR('Base de datos empleados'!D160=\"\",'Base de datos empleados'!C160=\"\"),\"\",'Base de datos empleados'!D160&\" \"&'Base de datos empleados'!C160)","v":""}]
[{"$f":"IF(OR('Base de datos empleados'!D161=\"\",'Base de datos empleados'!C161=\"\"),\"\",'Base de datos empleados'!D161&\" \"&'Base de datos empleados'!C161)","v":""}]
[{"$f":"IF(OR('Base de datos empleados'!D162=\"\",'Base de datos empleados'!C162=\"\"),\"\",'Base de datos empleados'!D162&\" \"&'Base de datos empleados'!C162)","v":""}]
[{"$f":"IF(OR('Base de datos empleados'!D163=\"\",'Base de datos empleados'!C163=\"\"),\"\",'Base de datos empleados'!D163&\" \"&'Base de datos empleados'!C163)","v":""}]
[{"$f":"IF(OR('Base de datos empleados'!D164=\"\",'Base de datos empleados'!C164=\"\"),\"\",'Base de datos empleados'!D164&\" \"&'Base de datos empleados'!C164)","v":""}]
[{"$f":"IF(OR('Base de datos empleados'!D165=\"\",'Base de datos empleados'!C165=\"\"),\"\",'Base de datos empleados'!D165&\" \"&'Base de datos empleados'!C165)","v":""}]
[{"$f":"IF(OR('Base de datos empleados'!D166=\"\",'Base de datos empleados'!C166=\"\"),\"\",'Base de datos empleados'!D166&\" \"&'Base de datos empleados'!C166)","v":""}]
[{"$f":"IF(OR('Base de datos empleados'!D167=\"\",'Base de datos empleados'!C167=\"\"),\"\",'Base de datos empleados'!D167&\" \"&'Base de datos empleados'!C167)","v":""}]
[{"$f":"IF(OR('Base de datos empleados'!D168=\"\",'Base de datos empleados'!C168=\"\"),\"\",'Base de datos empleados'!D168&\" \"&'Base de datos empleados'!C168)","v":""}]
[{"$f":"IF(OR('Base de datos empleados'!D169=\"\",'Base de datos empleados'!C169=\"\"),\"\",'Base de datos empleados'!D169&\" \"&'Base de datos empleados'!C169)","v":""}]
[{"$f":"IF(OR('Base de datos empleados'!D170=\"\",'Base de datos empleados'!C170=\"\"),\"\",'Base de datos empleados'!D170&\" \"&'Base de datos empleados'!C170)","v":""}]
[{"$f":"IF(OR('Base de datos empleados'!D171=\"\",'Base de datos empleados'!C171=\"\"),\"\",'Base de datos empleados'!D171&\" \"&'Base de datos empleados'!C171)","v":""}]
[{"$f":"IF(OR('Base de datos empleados'!D172=\"\",'Base de datos empleados'!C172=\"\"),\"\",'Base de datos empleados'!D172&\" \"&'Base de datos empleados'!C172)","v":""}]
[{"$f":"IF(OR('Base de datos empleados'!D173=\"\",'Base de datos empleados'!C173=\"\"),\"\",'Base de datos empleados'!D173&\" \"&'Base de datos empleados'!C173)","v":""}]
[{"$f":"IF(OR('Base de datos empleados'!D174=\"\",'Base de datos empleados'!C174=\"\"),\"\",'Base de datos empleados'!D174&\" \"&'Base de datos empleados'!C174)","v":""}]
[{"$f":"IF(OR('Base de datos empleados'!D175=\"\",'Base de datos empleados'!C175=\"\"),\"\",'Base de datos empleados'!D175&\" \"&'Base de datos empleados'!C175)","v":""}]
[{"$f":"IF(OR('Base de datos empleados'!D176=\"\",'Base de datos empleados'!C176=\"\"),\"\",'Base de datos empleados'!D176&\" \"&'Base de datos empleados'!C176)","v":""}]
[{"$f":"IF(OR('Base de datos empleados'!D177=\"\",'Base de datos empleados'!C177=\"\"),\"\",'Base de datos empleados'!D177&\" \"&'Base de datos empleados'!C177)","v":""}]
[{"$f":"IF(OR('Base de datos empleados'!D178=\"\",'Base de datos empleados'!C178=\"\"),\"\",'Base de datos empleados'!D178&\" \"&'Base de datos empleados'!C178)","v":""}]
[{"$f":"IF(OR('Base de datos empleados'!D179=\"\",'Base de datos empleados'!C179=\"\"),\"\",'Base de datos empleados'!D179&\" \"&'Base de datos empleados'!C179)","v":""}]
[{"$f":"IF(OR('Base de datos empleados'!D180=\"\",'Base de datos empleados'!C180=\"\"),\"\",'Base de datos empleados'!D180&\" \"&'Base de datos empleados'!C180)","v":""}]
[{"$f":"IF(OR('Base de datos empleados'!D181=\"\",'Base de datos empleados'!C181=\"\"),\"\",'Base de datos empleados'!D181&\" \"&'Base de datos empleados'!C181)","v":""}]
[{"$f":"IF(OR('Base de datos empleados'!D182=\"\",'Base de datos empleados'!C182=\"\"),\"\",'Base de datos empleados'!D182&\" \"&'Base de datos empleados'!C182)","v":""}]
[{"$f":"IF(OR('Base de datos empleados'!D183=\"\",'Base de datos empleados'!C183=\"\"),\"\",'Base de datos empleados'!D183&\" \"&'Base de datos empleados'!C183)","v":""}]
[{"$f":"IF(OR('Base de datos empleados'!D184=\"\",'Base de datos empleados'!C184=\"\"),\"\",'Base de datos empleados'!D184&\" \"&'Base de datos empleados'!C184)","v":""}]
[{"$f":"IF(OR('Base de datos empleados'!D185=\"\",'Base de datos empleados'!C185=\"\"),\"\",'Base de datos empleados'!D185&\" \"&'Base de datos empleados'!C185)","v":""}]
[{"$f":"IF(OR('Base de datos empleados'!D186=\"\",'Base de datos empleados'!C186=\"\"),\"\",'Base de datos empleados'!D186&\" \"&'Base de datos empleados'!C186)","v":""}]
[{"$f":"IF(OR('Base de datos empleados'!D187=\"\",'Base de datos empleados'!C187=\"\"),\"\",'Base de datos empleados'!D187&\" \"&'Base de datos empleados'!C187)","v":""}]
[{"$f":"IF(OR('Base de datos empleados'!D188=\"\",'Base de datos empleados'!C188=\"\"),\"\",'Base de datos empleados'!D188&\" \"&'Base de datos empleados'!C188)","v":""}]
[{"$f":"IF(OR('Base de datos empleados'!D189=\"\",'Base de datos empleados'!C189=\"\"),\"\",'Base de datos empleados'!D189&\" \"&'Base de datos empleados'!C189)","v":""}]
[{"$f":"IF(OR('Base de datos empleados'!D190=\"\",'Base de datos empleados'!C190=\"\"),\"\",'Base de datos empleados'!D190&\" \"&'Base de datos empleados'!C190)","v":""}]
[{"$f":"IF(OR('Base de datos empleados'!D191=\"\",'Base de datos empleados'!C191=\"\"),\"\",'Base de datos empleados'!D191&\" \"&'Base de datos empleados'!C191)","v":""}]
[{"$f":"IF(OR('Base de datos empleados'!D192=\"\",'Base de datos empleados'!C192=\"\"),\"\",'Base de datos empleados'!D192&\" \"&'Base de datos empleados'!C192)","v":""}]
[{"$f":"IF(OR('Base de datos empleados'!D193=\"\",'Base de datos empleados'!C193=\"\"),\"\",'Base de datos empleados'!D193&\" \"&'Base de datos empleados'!C193)","v":""}]
[{"$f":"IF(OR('Base de datos empleados'!D194=\"\",'Base de datos empleados'!C194=\"\"),\"\",'Base de datos empleados'!D194&\" \"&'Base de datos empleados'!C194)","v":""}]
[{"$f":"IF(OR('Base de datos empleados'!D195=\"\",'Base de datos empleados'!C195=\"\"),\"\",'Base de datos empleados'!D195&\" \"&'Base de datos empleados'!C195)","v":""}]
[{"$f":"IF(OR('Base de datos empleados'!D196=\"\",'Base de datos empleados'!C196=\"\"),\"\",'Base de datos empleados'!D196&\" \"&'Base de datos empleados'!C196)","v":""}]
[{"$f":"IF(OR('Base de datos empleados'!D197=\"\",'Base de datos empleados'!C197=\"\"),\"\",'Base de datos empleados'!D197&\" \"&'Base de datos empleados'!C197)","v":""}]
[{"$f":"IF(OR('Base de datos empleados'!D198=\"\",'Base de datos empleados'!C198=\"\"),\"\",'Base de datos empleados'!D198&\" \"&'Base de datos empleados'!C198)","v":""}]
[{"$f":"IF(OR('Base de datos empleados'!D199=\"\",'Base de datos empleados'!C199=\"\"),\"\",'Base de datos empleados'!D199&\" \"&'Base de datos empleados'!C199)","v":""}]
[{"$f":"IF(OR('Base de datos empleados'!D200=\"\",'Base de datos empleados'!C200=\"\"),\"\",'Base de datos empleados'!D200&\" \"&'Base de datos empleados'!C200)","v":""}]
[{"$f":"IF(OR('Base de datos empleados'!D201=\"\",'Base de datos empleados'!C201=\"\"),\"\",'Base de datos empleados'!D201&\" \"&'Base de datos empleados'!C201)","v":""}]
[{"$f":"IF(OR('Base de datos empleados'!D202=\"\",'Base de datos empleados'!C202=\"\"),\"\",'Base de datos empleados'!D202&\" \"&'Base de datos empleados'!C202)","v":""}]
[{"$f":"IF(OR('Base de datos empleados'!D203=\"\",'Base de datos empleados'!C203=\"\"),\"\",'Base de datos empleados'!D203&\" \"&'Base de datos empleados'!C203)","v":""}]
[{"$f":"IF(OR('Base de datos empleados'!D204=\"\",'Base de datos empleados'!C204=\"\"),\"\",'Base de datos empleados'!D204&\" \"&'Base de datos empleados'!C204)","v":""}]
[{"$f":"IF(OR('Base de datos empleados'!D205=\"\",'Base de datos empleados'!C205=\"\"),\"\",'Base de datos empleados'!D205&\" \"&'Base de datos empleados'!C205)","v":""}]
[{"$f":"IF(OR('Base de datos empleados'!D206=\"\",'Base de datos empleados'!C206=\"\"),\"\",'Base de datos empleados'!D206&\" \"&'Base de datos empleados'!C206)","v":""}]
[{"$f":"IF(OR('Base de datos empleados'!D207=\"\",'Base de datos empleados'!C207=\"\"),\"\",'Base de datos empleados'!D207&\" \"&'Base de datos empleados'!C207)","v":""}]
[{"$f":"IF(OR('Base de datos empleados'!D208=\"\",'Base de datos empleados'!C208=\"\"),\"\",'Base de datos empleados'!D208&\" \"&'Base de datos empleados'!C208)","v":""}]
[{"$f":"IF(OR('Base de datos empleados'!D209=\"\",'Base de datos empleados'!C209=\"\"),\"\",'Base de datos empleados'!D209&\" \"&'Base de datos empleados'!C209)","v":""}]
[{"$f":"IF(OR('Base de datos empleados'!D210=\"\",'Base de datos empleados'!C210=\"\"),\"\",'Base de datos empleados'!D210&\" \"&'Base de datos empleados'!C210)","v":""}]
[{"$f":"IF(OR('Base de datos empleados'!D211=\"\",'Base de datos empleados'!C211=\"\"),\"\",'Base de datos empleados'!D211&\" \"&'Base de datos empleados'!C211)","v":""}]
[{"$f":"IF(OR('Base de datos empleados'!D212=\"\",'Base de datos empleados'!C212=\"\"),\"\",'Base de datos empleados'!D212&\" \"&'Base de datos empleados'!C212)","v":""}]
[{"$f":"IF(OR('Base de datos empleados'!D213=\"\",'Base de datos empleados'!C213=\"\"),\"\",'Base de datos empleados'!D213&\" \"&'Base de datos empleados'!C213)","v":""}]
[{"$f":"IF(OR('Base de datos empleados'!D214=\"\",'Base de datos empleados'!C214=\"\"),\"\",'Base de datos empleados'!D214&\" \"&'Base de datos empleados'!C214)","v":""}]
[{"$f":"IF(OR('Base de datos empleados'!D215=\"\",'Base de datos empleados'!C215=\"\"),\"\",'Base de datos empleados'!D215&\" \"&'Base de datos empleados'!C215)","v":""}]
[{"$f":"IF(OR('Base de datos empleados'!D216=\"\",'Base de datos empleados'!C216=\"\"),\"\",'Base de datos empleados'!D216&\" \"&'Base de datos empleados'!C216)","v":""}]
[{"$f":"IF(OR('Base de datos empleados'!D217=\"\",'Base de datos empleados'!C217=\"\"),\"\",'Base de datos empleados'!D217&\" \"&'Base de datos empleados'!C217)","v":""}]
[{"$f":"IF(OR('Base de datos empleados'!D218=\"\",'Base de datos empleados'!C218=\"\"),\"\",'Base de datos empleados'!D218&\" \"&'Base de datos empleados'!C218)","v":""}]
[{"$f":"IF(OR('Base de datos empleados'!D219=\"\",'Base de datos empleados'!C219=\"\"),\"\",'Base de datos empleados'!D219&\" \"&'Base de datos empleados'!C219)","v":""}]
[{"$f":"IF(OR('Base de datos empleados'!D220=\"\",'Base de datos empleados'!C220=\"\"),\"\",'Base de datos empleados'!D220&\" \"&'Base de datos empleados'!C220)","v":""}]
[{"$f":"IF(OR('Base de datos empleados'!D221=\"\",'Base de datos empleados'!C221=\"\"),\"\",'Base de datos empleados'!D221&\" \"&'Base de datos empleados'!C221)","v":""}]
[{"$f":"IF(OR('Base de datos empleados'!D222=\"\",'Base de datos empleados'!C222=\"\"),\"\",'Base de datos empleados'!D222&\" \"&'Base de datos empleados'!C222)","v":""}]
[{"$f":"IF(OR('Base de datos empleados'!D223=\"\",'Base de datos empleados'!C223=\"\"),\"\",'Base de datos empleados'!D223&\" \"&'Base de datos empleados'!C223)","v":""}]
[{"$f":"IF(OR('Base de datos empleados'!D224=\"\",'Base de datos empleados'!C224=\"\"),\"\",'Base de datos empleados'!D224&\" \"&'Base de datos empleados'!C224)","v":""}]
[{"$f":"IF(OR('Base de datos empleados'!D225=\"\",'Base de datos empleados'!C225=\"\"),\"\",'Base de datos empleados'!D225&\" \"&'Base de datos empleados'!C225)","v":""}]
[{"$f":"IF(OR('Base de datos empleados'!D226=\"\",'Base de datos empleados'!C226=\"\"),\"\",'Base de datos empleados'!D226&\" \"&'Base de datos empleados'!C226)","v":""}]
[{"$f":"IF(OR('Base de datos empleados'!D227=\"\",'Base de datos empleados'!C227=\"\"),\"\",'Base de datos empleados'!D227&\" \"&'Base de datos empleados'!C227)","v":""}]
[{"$f":"IF(OR('Base de datos empleados'!D228=\"\",'Base de datos empleados'!C228=\"\"),\"\",'Base de datos empleados'!D228&\" \"&'Base de datos empleados'!C228)","v":""}]
[{"$f":"IF(OR('Base de datos empleados'!D229=\"\",'Base de datos empleados'!C229=\"\"),\"\",'Base de datos empleados'!D229&\" \"&'Base de datos empleados'!C229)","v":""}]
[{"$f":"IF(OR('Base de datos empleados'!D230=\"\",'Base de datos empleados'!C230=\"\"),\"\",'Base de datos empleados'!D230&\" \"&'Base de datos empleados'!C230)","v":""}]
[{"$f":"IF(OR('Base de datos empleados'!D231=\"\",'Base de datos empleados'!C231=\"\"),\"\",'Base de datos empleados'!D231&\" \"&'Base de datos empleados'!C231)","v":""}]
[{"$f":"IF(OR('Base de datos empleados'!D232=\"\",'Base de datos empleados'!C232=\"\"),\"\",'Base de datos empleados'!D232&\" \"&'Base de datos empleados'!C232)","v":""}]
[{"$f":"IF(OR('Base de datos empleados'!D233=\"\",'Base de datos empleados'!C233=\"\"),\"\",'Base de datos empleados'!D233&\" \"&'Base de datos empleados'!C233)","v":""}]
[{"$f":"IF(OR('Base de datos empleados'!D234=\"\",'Base de datos empleados'!C234=\"\"),\"\",'Base de datos empleados'!D234&\" \"&'Base de datos empleados'!C234)","v":""}]
[{"$f":"IF(OR('Base de datos empleados'!D235=\"\",'Base de datos empleados'!C235=\"\"),\"\",'Base de datos empleados'!D235&\" \"&'Base de datos empleados'!C235)","v":""}]
[{"$f":"IF(OR('Base de datos empleados'!D236=\"\",'Base de datos empleados'!C236=\"\"),\"\",'Base de datos empleados'!D236&\" \"&'Base de datos empleados'!C236)","v":""}]
[{"$f":"IF(OR('Base de datos empleados'!D237=\"\",'Base de datos empleados'!C237=\"\"),\"\",'Base de datos empleados'!D237&\" \"&'Base de datos empleados'!C237)","v":""}]
[{"$f":"IF(OR('Base de datos empleados'!D238=\"\",'Base de datos empleados'!C238=\"\"),\"\",'Base de datos empleados'!D238&\" \"&'Base de datos empleados'!C238)","v":""}]
[{"$f":"IF(OR('Base de datos empleados'!D239=\"\",'Base de datos empleados'!C239=\"\"),\"\",'Base de datos empleados'!D239&\" \"&'Base de datos empleados'!C239)","v":""}]
[{"$f":"IF(OR('Base de datos empleados'!D240=\"\",'Base de datos empleados'!C240=\"\"),\"\",'Base de datos empleados'!D240&\" \"&'Base de datos empleados'!C240)","v":""}]
[{"$f":"IF(OR('Base de datos empleados'!D241=\"\",'Base de datos empleados'!C241=\"\"),\"\",'Base de datos empleados'!D241&\" \"&'Base de datos empleados'!C241)","v":""}]
[{"$f":"IF(OR('Base de datos empleados'!D242=\"\",'Base de datos empleados'!C242=\"\"),\"\",'Base de datos empleados'!D242&\" \"&'Base de datos empleados'!C242)","v":""}]
[{"$f":"IF(OR('Base de datos empleados'!D243=\"\",'Base de datos empleados'!C243=\"\"),\"\",'Base de datos empleados'!D243&\" \"&'Base de datos empleados'!C243)","v":""}]
[{"$f":"IF(OR('Base de datos empleados'!D244=\"\",'Base de datos empleados'!C244=\"\"),\"\",'Base de datos empleados'!D244&\" \"&'Base de datos empleados'!C244)","v":""}]
[{"$f":"IF(OR('Base de datos empleados'!D245=\"\",'Base de datos empleados'!C245=\"\"),\"\",'Base de datos empleados'!D245&\" \"&'Base de datos empleados'!C245)","v":""}]
[{"$f":"IF(OR('Base de datos empleados'!D246=\"\",'Base de datos empleados'!C246=\"\"),\"\",'Base de datos empleados'!D246&\" \"&'Base de datos empleados'!C246)","v":""}]
[{"$f":"IF(OR('Base de datos empleados'!D247=\"\",'Base de datos empleados'!C247=\"\"),\"\",'Base de datos empleados'!D247&\" \"&'Base de datos empleados'!C247)","v":""}]
[{"$f":"IF(OR('Base de datos empleados'!D248=\"\",'Base de datos empleados'!C248=\"\"),\"\",'Base de datos empleados'!D248&\" \"&'Base de datos empleados'!C248)","v":""}]
[{"$f":"IF(OR('Base de datos empleados'!D249=\"\",'Base de datos empleados'!C249=\"\"),\"\",'Base de datos empleados'!D249&\" \"&'Base de datos empleados'!C249)","v":""}]
[{"$f":"IF(OR('Base de datos empleados'!D250=\"\",'Base de datos empleados'!C250=\"\"),\"\",'Base de datos empleados'!D250&\" \"&'Base de datos empleados'!C250)","v":""}]
[{"$f":"IF(OR('Base de datos empleados'!D251=\"\",'Base de datos empleados'!C251=\"\"),\"\",'Base de datos empleados'!D251&\" \"&'Base de datos empleados'!C251)","v":""}]
[{"$f":"IF(OR('Base de datos empleados'!D252=\"\",'Base de datos empleados'!C252=\"\"),\"\",'Base de datos empleados'!D252&\" \"&'Base de datos empleados'!C252)","v":""}]
[{"$f":"IF(OR('Base de datos empleados'!D253=\"\",'Base de datos empleados'!C253=\"\"),\"\",'Base de datos empleados'!D253&\" \"&'Base de datos empleados'!C253)","v":""}]
[{"$f":"IF(OR('Base de datos empleados'!D254=\"\",'Base de datos empleados'!C254=\"\"),\"\",'Base de datos empleados'!D254&\" \"&'Base de datos empleados'!C254)","v":""}]
[{"$f":"IF(OR('Base de datos empleados'!D255=\"\",'Base de datos empleados'!C255=\"\"),\"\",'Base de datos empleados'!D255&\" \"&'Base de datos empleados'!C255)","v":""}]
[{"$f":"IF(OR('Base de datos empleados'!D256=\"\",'Base de datos empleados'!C256=\"\"),\"\",'Base de datos empleados'!D256&\" \"&'Base de datos empleados'!C256)","v":""}]
[{"$f":"IF(OR('Base de datos empleados'!D257=\"\",'Base de datos empleados'!C257=\"\"),\"\",'Base de datos empleados'!D257&\" \"&'Base de datos empleados'!C257)","v":""}]
[{"$f":"IF(OR('Base de datos empleados'!D258=\"\",'Base de datos empleados'!C258=\"\"),\"\",'Base de datos empleados'!D258&\" \"&'Base de datos empleados'!C258)","v":""}]
[{"$f":"IF(OR('Base de datos empleados'!D259=\"\",'Base de datos empleados'!C259=\"\"),\"\",'Base de datos empleados'!D259&\" \"&'Base de datos empleados'!C259)","v":""}]
[{"$f":"IF(OR('Base de datos empleados'!D260=\"\",'Base de datos empleados'!C260=\"\"),\"\",'Base de datos empleados'!D260&\" \"&'Base de datos empleados'!C260)","v":""}]
[{"$f":"IF(OR('Base de datos empleados'!D261=\"\",'Base de datos empleados'!C261=\"\"),\"\",'Base de datos empleados'!D261&\" \"&'Base de datos empleados'!C261)","v":""}]
[{"$f":"IF(OR('Base de datos empleados'!D262=\"\",'Base de datos empleados'!C262=\"\"),\"\",'Base de datos empleados'!D262&\" \"&'Base de datos empleados'!C262)","v":""}]
[{"$f":"IF(OR('Base de datos empleados'!D263=\"\",'Base de datos empleados'!C263=\"\"),\"\",'Base de datos empleados'!D263&\" \"&'Base de datos empleados'!C263)","v":""}]
[{"$f":"IF(OR('Base de datos empleados'!D264=\"\",'Base de datos empleados'!C264=\"\"),\"\",'Base de datos empleados'!D264&\" \"&'Base de datos empleados'!C264)","v":""}]
[{"$f":"IF(OR('Base de datos empleados'!D265=\"\",'Base de datos empleados'!C265=\"\"),\"\",'Base de datos empleados'!D265&\" \"&'Base de datos empleados'!C265)","v":""}]
[{"$f":"IF(OR('Base de datos empleados'!D266=\"\",'Base de datos empleados'!C266=\"\"),\"\",'Base de datos empleados'!D266&\" \"&'Base de datos empleados'!C266)","v":""}]
[{"$f":"IF(OR('Base de datos empleados'!D267=\"\",'Base de datos empleados'!C267=\"\"),\"\",'Base de datos empleados'!D267&\" \"&'Base de datos empleados'!C267)","v":""}]
[{"$f":"IF(OR('Base de datos empleados'!D268=\"\",'Base de datos empleados'!C268=\"\"),\"\",'Base de datos empleados'!D268&\" \"&'Base de datos empleados'!C268)","v":""}]
[{"$f":"IF(OR('Base de datos empleados'!D269=\"\",'Base de datos empleados'!C269=\"\"),\"\",'Base de datos empleados'!D269&\" \"&'Base de datos empleados'!C269)","v":""}]
[{"$f":"IF(OR('Base de datos empleados'!D270=\"\",'Base de datos empleados'!C270=\"\"),\"\",'Base de datos empleados'!D270&\" \"&'Base de datos empleados'!C270)","v":""}]
[{"$f":"IF(OR('Base de datos empleados'!D271=\"\",'Base de datos empleados'!C271=\"\"),\"\",'Base de datos empleados'!D271&\" \"&'Base de datos empleados'!C271)","v":""}]
[{"$f":"IF(OR('Base de datos empleados'!D272=\"\",'Base de datos empleados'!C272=\"\"),\"\",'Base de datos empleados'!D272&\" \"&'Base de datos empleados'!C272)","v":""}]
[{"$f":"IF(OR('Base de datos empleados'!D273=\"\",'Base de datos empleados'!C273=\"\"),\"\",'Base de datos empleados'!D273&\" \"&'Base de datos empleados'!C273)","v":""}]
[{"$f":"IF(OR('Base de datos empleados'!D274=\"\",'Base de datos empleados'!C274=\"\"),\"\",'Base de datos empleados'!D274&\" \"&'Base de datos empleados'!C274)","v":""}]
[{"$f":"IF(OR('Base de datos empleados'!D275=\"\",'Base de datos empleados'!C275=\"\"),\"\",'Base de datos empleados'!D275&\" \"&'Base de datos empleados'!C275)","v":""}]
[{"$f":"IF(OR('Base de datos empleados'!D276=\"\",'Base de datos empleados'!C276=\"\"),\"\",'Base de datos empleados'!D276&\" \"&'Base de datos empleados'!C276)","v":""}]
[{"$f":"IF(OR('Base de datos empleados'!D277=\"\",'Base de datos empleados'!C277=\"\"),\"\",'Base de datos empleados'!D277&\" \"&'Base de datos empleados'!C277)","v":""}]
[{"$f":"IF(OR('Base de datos empleados'!D278=\"\",'Base de datos empleados'!C278=\"\"),\"\",'Base de datos empleados'!D278&\" \"&'Base de datos empleados'!C278)","v":""}]
[{"$f":"IF(OR('Base de datos empleados'!D279=\"\",'Base de datos empleados'!C279=\"\"),\"\",'Base de datos empleados'!D279&\" \"&'Base de datos empleados'!C279)","v":""}]
[{"$f":"IF(OR('Base de datos empleados'!D280=\"\",'Base de datos empleados'!C280=\"\"),\"\",'Base de datos empleados'!D280&\" \"&'Base de datos empleados'!C280)","v":""}]
[{"$f":"IF(OR('Base de datos empleados'!D281=\"\",'Base de datos empleados'!C281=\"\"),\"\",'Base de datos empleados'!D281&\" \"&'Base de datos empleados'!C281)","v":""}]
[{"$f":"IF(OR('Base de datos empleados'!D282=\"\",'Base de datos empleados'!C282=\"\"),\"\",'Base de datos empleados'!D282&\" \"&'Base de datos empleados'!C282)","v":""}]
[{"$f":"IF(OR('Base de datos empleados'!D283=\"\",'Base de datos empleados'!C283=\"\"),\"\",'Base de datos empleados'!D283&\" \"&'Base de datos empleados'!C283)","v":""}]
[{"$f":"IF(OR('Base de datos empleados'!D284=\"\",'Base de datos empleados'!C284=\"\"),\"\",'Base de datos empleados'!D284&\" \"&'Base de datos empleados'!C284)","v":""}]
[{"$f":"IF(OR('Base de datos empleados'!D285=\"\",'Base de datos empleados'!C285=\"\"),\"\",'Base de datos empleados'!D285&\" \"&'Base de datos empleados'!C285)","v":""}]
[{"$f":"IF(OR('Base de datos empleados'!D286=\"\",'Base de datos empleados'!C286=\"\"),\"\",'Base de datos empleados'!D286&\" \"&'Base de datos empleados'!C286)","v":""}]
[{"$f":"IF(OR('Base de datos empleados'!D287=\"\",'Base de datos empleados'!C287=\"\"),\"\",'Base de datos empleados'!D287&\" \"&'Base de datos empleados'!C287)","v":""}]
[{"$f":"IF(OR('Base de datos empleados'!D288=\"\",'Base de datos empleados'!C288=\"\"),\"\",'Base de datos empleados'!D288&\" \"&'Base de datos empleados'!C288)","v":""}]
[{"$f":"IF(OR('Base de datos empleados'!D289=\"\",'Base de datos empleados'!C289=\"\"),\"\",'Base de datos empleados'!D289&\" \"&'Base de datos empleados'!C289)","v":""}]
[{"$f":"IF(OR('Base de datos empleados'!D290=\"\",'Base de datos empleados'!C290=\"\"),\"\",'Base de datos empleados'!D290&\" \"&'Base de datos empleados'!C290)","v":""}]
[{"$f":"IF(OR('Base de datos empleados'!D291=\"\",'Base de datos empleados'!C291=\"\"),\"\",'Base de datos empleados'!D291&\" \"&'Base de datos empleados'!C291)","v":""}]
[{"$f":"IF(OR('Base de datos empleados'!D292=\"\",'Base de datos empleados'!C292=\"\"),\"\",'Base de datos empleados'!D292&\" \"&'Base de datos empleados'!C292)","v":""}]
[{"$f":"IF(OR('Base de datos empleados'!D293=\"\",'Base de datos empleados'!C293=\"\"),\"\",'Base de datos empleados'!D293&\" \"&'Base de datos empleados'!C293)","v":""}]
[{"$f":"IF(OR('Base de datos empleados'!D294=\"\",'Base de datos empleados'!C294=\"\"),\"\",'Base de datos empleados'!D294&\" \"&'Base de datos empleados'!C294)","v":""}]
[{"$f":"IF(OR('Base de datos empleados'!D295=\"\",'Base de datos empleados'!C295=\"\"),\"\",'Base de datos empleados'!D295&\" \"&'Base de datos empleados'!C295)","v":""}]
[{"$f":"IF(OR('Base de datos empleados'!D296=\"\",'Base de datos empleados'!C296=\"\"),\"\",'Base de datos empleados'!D296&\" \"&'Base de datos empleados'!C296)","v":""}]
[{"$f":"IF(OR('Base de datos empleados'!D297=\"\",'Base de datos empleados'!C297=\"\"),\"\",'Base de datos empleados'!D297&\" \"&'Base de datos empleados'!C297)","v":""}]
[{"$f":"IF(OR('Base de datos empleados'!D298=\"\",'Base de datos empleados'!C298=\"\"),\"\",'Base de datos empleados'!D298&\" \"&'Base de datos empleados'!C298)","v":""}]
[{"$f":"IF(OR('Base de datos empleados'!D299=\"\",'Base de datos empleados'!C299=\"\"),\"\",'Base de datos empleados'!D299&\" \"&'Base de datos empleados'!C299)","v":""}]
[{"$f":"IF(OR('Base de datos empleados'!D300=\"\",'Base de datos empleados'!C300=\"\"),\"\",'Base de datos empleados'!D300&\" \"&'Base de datos empleados'!C300)","v":""}]
[{"$f":"IF(OR('Base de datos empleados'!D301=\"\",'Base de datos empleados'!C301=\"\"),\"\",'Base de datos empleados'!D301&\" \"&'Base de datos empleados'!C301)","v":""}]
[{"$f":"IF(OR('Base de datos empleados'!D302=\"\",'Base de datos empleados'!C302=\"\"),\"\",'Base de datos empleados'!D302&\" \"&'Base de datos empleados'!C302)","v":""}]
[{"$f":"IF(OR('Base de datos empleados'!D303=\"\",'Base de datos empleados'!C303=\"\"),\"\",'Base de datos empleados'!D303&\" \"&'Base de datos empleados'!C303)","v":""}]
[{"$f":"IF(OR('Base de datos empleados'!D304=\"\",'Base de datos empleados'!C304=\"\"),\"\",'Base de datos empleados'!D304&\" \"&'Base de datos empleados'!C304)","v":""}]
[{"$f":"IF(OR('Base de datos empleados'!D305=\"\",'Base de datos empleados'!C305=\"\"),\"\",'Base de datos empleados'!D305&\" \"&'Base de datos empleados'!C305)","v":""}]
[{"$f":"IF(OR('Base de datos empleados'!D306=\"\",'Base de datos empleados'!C306=\"\"),\"\",'Base de datos empleados'!D306&\" \"&'Base de datos empleados'!C306)","v":""}]
[{"$f":"IF(OR('Base de datos empleados'!D307=\"\",'Base de datos empleados'!C307=\"\"),\"\",'Base de datos empleados'!D307&\" \"&'Base de datos empleados'!C307)","v":""}]
[{"$f":"IF(OR('Base de datos empleados'!D308=\"\",'Base de datos empleados'!C308=\"\"),\"\",'Base de datos empleados'!D308&\" \"&'Base de datos empleados'!C308)","v":""}]
[{"$f":"IF(OR('Base de datos empleados'!D309=\"\",'Base de datos empleados'!C309=\"\"),\"\",'Base de datos empleados'!D309&\" \"&'Base de datos empleados'!C309)","v":""}]
[{"$f":"IF(OR('Base de datos empleados'!D310=\"\",'Base de datos empleados'!C310=\"\"),\"\",'Base de datos empleados'!D310&\" \"&'Base de datos empleados'!C310)","v":""}]
[{"$f":"IF(OR('Base de datos empleados'!D311=\"\",'Base de datos empleados'!C311=\"\"),\"\",'Base de datos empleados'!D311&\" \"&'Base de datos empleados'!C311)","v":""}]
[{"$f":"IF(OR('Base de datos empleados'!D312=\"\",'Base de datos empleados'!C312=\"\"),\"\",'Base de datos empleados'!D312&\" \"&'Base de datos empleados'!C312)","v":""}]
[{"$f":"IF(OR('Base de datos empleados'!D313=\"\",'Base de datos empleados'!C313=\"\"),\"\",'Base de datos empleados'!D313&\" \"&'Base de datos empleados'!C313)","v":""}]
[{"$f":"IF(OR('Base de datos empleados'!D314=\"\",'Base de datos empleados'!C314=\"\"),\"\",'Base de datos empleados'!D314&\" \"&'Base de datos empleados'!C314)","v":""}]
[{"$f":"IF(OR('Base de datos empleados'!D315=\"\",'Base de datos empleados'!C315=\"\"),\"\",'Base de datos empleados'!D315&\" \"&'Base de datos empleados'!C315)","v":""}]
[{"$f":"IF(OR('Base de datos empleados'!D316=\"\",'Base de datos empleados'!C316=\"\"),\"\",'Base de datos empleados'!D316&\" \"&'Base de datos empleados'!C316)","v":""}]
[{"$f":"IF(OR('Base de datos empleados'!D317=\"\",'Base de datos empleados'!C317=\"\"),\"\",'Base de datos empleados'!D317&\" \"&'Base de datos empleados'!C317)","v":""}]
[{"$f":"IF(OR('Base de datos empleados'!D318=\"\",'Base de datos empleados'!C318=\"\"),\"\",'Base de datos empleados'!D318&\" \"&'Base de datos empleados'!C318)","v":""}]
[{"$f":"IF(OR('Base de datos empleados'!D319=\"\",'Base de datos empleados'!C319=\"\"),\"\",'Base de datos empleados'!D319&\" \"&'Base de datos empleados'!C319)","v":""}]
[{"$f":"IF(OR('Base de datos empleados'!D320=\"\",'Base de datos empleados'!C320=\"\"),\"\",'Base de datos empleados'!D320&\" \"&'Base de datos empleados'!C320)","v":""}]
[{"$f":"IF(OR('Base de datos empleados'!D321=\"\",'Base de datos empleados'!C321=\"\"),\"\",'Base de datos empleados'!D321&\" \"&'Base de datos empleados'!C321)","v":""}]
[{"$f":"IF(OR('Base de datos empleados'!D322=\"\",'Base de datos empleados'!C322=\"\"),\"\",'Base de datos empleados'!D322&\" \"&'Base de datos empleados'!C322)","v":""}]
[{"$f":"IF(OR('Base de datos empleados'!D323=\"\",'Base de datos empleados'!C323=\"\"),\"\",'Base de datos empleados'!D323&\" \"&'Base de datos empleados'!C323)","v":""}]
[{"$f":"IF(OR('Base de datos empleados'!D324=\"\",'Base de datos empleados'!C324=\"\"),\"\",'Base de datos empleados'!D324&\" \"&'Base de datos empleados'!C324)","v":""}]
[{"$f":"IF(OR('Base de datos empleados'!D325=\"\",'Base de datos empleados'!C325=\"\"),\"\",'Base de datos empleados'!D325&\" \"&'Base de datos empleados'!C325)","v":""}]
[{"$f":"IF(OR('Base de datos empleados'!D326=\"\",'Base de datos empleados'!C326=\"\"),\"\",'Base de datos empleados'!D326&\" \"&'Base de datos empleados'!C326)","v":""}]
[{"$f":"IF(OR('Base de datos empleados'!D327=\"\",'Base de datos empleados'!C327=\"\"),\"\",'Base de datos empleados'!D327&\" \"&'Base de datos empleados'!C327)","v":""}]
[{"$f":"IF(OR('Base de datos empleados'!D328=\"\",'Base de datos empleados'!C328=\"\"),\"\",'Base de datos empleados'!D328&\" \"&'Base de datos empleados'!C328)","v":""}]
[{"$f":"IF(OR('Base de datos empleados'!D329=\"\",'Base de datos empleados'!C329=\"\"),\"\",'Base de datos empleados'!D329&\" \"&'Base de datos empleados'!C329)","v":""}]
[{"$f":"IF(OR('Base de datos empleados'!D330=\"\",'Base de datos empleados'!C330=\"\"),\"\",'Base de datos empleados'!D330&\" \"&'Base de datos empleados'!C330)","v":""}]
[{"$f":"IF(OR('Base de datos empleados'!D331=\"\",'Base de datos empleados'!C331=\"\"),\"\",'Base de datos empleados'!D331&\" \"&'Base de datos empleados'!C331)","v":""}]
[{"$f":"IF(OR('Base de datos empleados'!D332=\"\",'Base de datos empleados'!C332=\"\"),\"\",'Base de datos empleados'!D332&\" \"&'Base de datos empleados'!C332)","v":""}]
[{"$f":"IF(OR('Base de datos empleados'!D333=\"\",'Base de datos empleados'!C333=\"\"),\"\",'Base de datos empleados'!D333&\" \"&'Base de datos empleados'!C333)","v":""}]
[{"$f":"IF(OR('Base de datos empleados'!D334=\"\",'Base de datos empleados'!C334=\"\"),\"\",'Base de datos empleados'!D334&\" \"&'Base de datos empleados'!C334)","v":""}]
[{"$f":"IF(OR('Base de datos empleados'!D335=\"\",'Base de datos empleados'!C335=\"\"),\"\",'Base de datos empleados'!D335&\" \"&'Base de datos empleados'!C335)","v":""}]
[{"$f":"IF(OR('Base de datos empleados'!D336=\"\",'Base de datos empleados'!C336=\"\"),\"\",'Base de datos empleados'!D336&\" \"&'Base de datos empleados'!C336)","v":""}]
[{"$f":"IF(OR('Base de datos empleados'!D337=\"\",'Base de datos empleados'!C337=\"\"),\"\",'Base de datos empleados'!D337&\" \"&'Base de datos empleados'!C337)","v":""}]
[{"$f":"IF(OR('Base de datos empleados'!D338=\"\",'Base de datos empleados'!C338=\"\"),\"\",'Base de datos empleados'!D338&\" \"&'Base de datos empleados'!C338)","v":""}]
[{"$f":"IF(OR('Base de datos empleados'!D339=\"\",'Base de datos empleados'!C339=\"\"),\"\",'Base de datos empleados'!D339&\" \"&'Base de datos empleados'!C339)","v":""}]
[{"$f":"IF(OR('Base de datos empleados'!D340=\"\",'Base de datos empleados'!C340=\"\"),\"\",'Base de datos empleados'!D340&\" \"&'Base de datos empleados'!C340)","v":""}]
[{"$f":"IF(OR('Base de datos empleados'!D341=\"\",'Base de datos empleados'!C341=\"\"),\"\",'Base de datos empleados'!D341&\" \"&'Base de datos empleados'!C341)","v":""}]
[{"$f":"IF(OR('Base de datos empleados'!D342=\"\",'Base de datos empleados'!C342=\"\"),\"\",'Base de datos empleados'!D342&\" \"&'Base de datos empleados'!C342)","v":""}]
[{"$f":"IF(OR('Base de datos empleados'!D343=\"\",'Base de datos empleados'!C343=\"\"),\"\",'Base de datos empleados'!D343&\" \"&'Base de datos empleados'!C343)","v":""}]
[{"$f":"IF(OR('Base de datos empleados'!D344=\"\",'Base de datos empleados'!C344=\"\"),\"\",'Base de datos empleados'!D344&\" \"&'Base de datos empleados'!C344)","v":""}]
[{"$f":"IF(OR('Base de datos empleados'!D345=\"\",'Base de datos empleados'!C345=\"\"),\"\",'Base de datos empleados'!D345&\" \"&'Base de datos empleados'!C345)","v":""}]
[{"$f":"IF(OR('Base de datos empleados'!D346=\"\",'Base de datos empleados'!C346=\"\"),\"\",'Base de datos empleados'!D346&\" \"&'Base de datos empleados'!C346)","v":""}]
[{"$f":"IF(OR('Base de datos empleados'!D347=\"\",'Base de datos empleados'!C347=\"\"),\"\",'Base de datos empleados'!D347&\" \"&'Base de datos empleados'!C347)","v":""}]
[{"$f":"IF(OR('Base de datos empleados'!D348=\"\",'Base de datos empleados'!C348=\"\"),\"\",'Base de datos empleados'!D348&\" \"&'Base de datos empleados'!C348)","v":""}]
[{"$f":"IF(OR('Base de datos empleados'!D349=\"\",'Base de datos empleados'!C349=\"\"),\"\",'Base de datos empleados'!D349&\" \"&'Base de datos empleados'!C349)","v":""}]
[{"$f":"IF(OR('Base de datos empleados'!D350=\"\",'Base de datos empleados'!C350=\"\"),\"\",'Base de datos empleados'!D350&\" \"&'Base de datos empleados'!C350)","v":""}]
[{"$f":"IF(OR('Base de datos empleados'!D351=\"\",'Base de datos empleados'!C351=\"\"),\"\",'Base de datos empleados'!D351&\" \"&'Base de datos empleados'!C351)","v":""}]
[{"$f":"IF(OR('Base de datos empleados'!D352=\"\",'Base de datos empleados'!C352=\"\"),\"\",'Base de datos empleados'!D352&\" \"&'Base de datos empleados'!C352)","v":""}]
[{"$f":"IF(OR('Base de datos empleados'!D353=\"\",'Base de datos empleados'!C353=\"\"),\"\",'Base de datos empleados'!D353&\" \"&'Base de datos empleados'!C353)","v":""}]
[{"$f":"IF(OR('Base de datos empleados'!D354=\"\",'Base de datos empleados'!C354=\"\"),\"\",'Base de datos empleados'!D354&\" \"&'Base de datos empleados'!C354)","v":""}]
[{"$f":"IF(OR('Base de datos empleados'!D355=\"\",'Base de datos empleados'!C355=\"\"),\"\",'Base de datos empleados'!D355&\" \"&'Base de datos empleados'!C355)","v":""}]
[{"$f":"IF(OR('Base de datos empleados'!D356=\"\",'Base de datos empleados'!C356=\"\"),\"\",'Base de datos empleados'!D356&\" \"&'Base de datos empleados'!C356)","v":""}]
[{"$f":"IF(OR('Base de datos empleados'!D357=\"\",'Base de datos empleados'!C357=\"\"),\"\",'Base de datos empleados'!D357&\" \"&'Base de datos empleados'!C357)","v":""}]
[{"$f":"IF(OR('Base de datos empleados'!D358=\"\",'Base de datos empleados'!C358=\"\"),\"\",'Base de datos empleados'!D358&\" \"&'Base de datos empleados'!C358)","v":""}]
[{"$f":"IF(OR('Base de datos empleados'!D359=\"\",'Base de datos empleados'!C359=\"\"),\"\",'Base de datos empleados'!D359&\" \"&'Base de datos empleados'!C359)","v":""}]
[{"$f":"IF(OR('Base de datos empleados'!D360=\"\",'Base de datos empleados'!C360=\"\"),\"\",'Base de datos empleados'!D360&\" \"&'Base de datos empleados'!C360)","v":""}]
[{"$f":"IF(OR('Base de datos empleados'!D361=\"\",'Base de datos empleados'!C361=\"\"),\"\",'Base de datos empleados'!D361&\" \"&'Base de datos empleados'!C361)","v":""}]
[{"$f":"IF(OR('Base de datos empleados'!D362=\"\",'Base de datos empleados'!C362=\"\"),\"\",'Base de datos empleados'!D362&\" \"&'Base de datos empleados'!C362)","v":""}]
[{"$f":"IF(OR('Base de datos empleados'!D363=\"\",'Base de datos empleados'!C363=\"\"),\"\",'Base de datos empleados'!D363&\" \"&'Base de datos empleados'!C363)","v":""}]
[{"$f":"IF(OR('Base de datos empleados'!D364=\"\",'Base de datos empleados'!C364=\"\"),\"\",'Base de datos empleados'!D364&\" \"&'Base de datos empleados'!C364)","v":""}]
[{"$f":"IF(OR('Base de datos empleados'!D365=\"\",'Base de datos empleados'!C365=\"\"),\"\",'Base de datos empleados'!D365&\" \"&'Base de datos empleados'!C365)","v":""}]
[{"$f":"IF(OR('Base de datos empleados'!D366=\"\",'Base de datos empleados'!C366=\"\"),\"\",'Base de datos empleados'!D366&\" \"&'Base de datos empleados'!C366)","v":""}]
[{"$f":"IF(OR('Base de datos empleados'!D367=\"\",'Base de datos empleados'!C367=\"\"),\"\",'Base de datos empleados'!D367&\" \"&'Base de datos empleados'!C367)","v":""}]
[{"$f":"IF(OR('Base de datos empleados'!D368=\"\",'Base de datos empleados'!C368=\"\"),\"\",'Base de datos empleados'!D368&\" \"&'Base de datos empleados'!C368)","v":""}]
[{"$f":"IF(OR('Base de datos empleados'!D369=\"\",'Base de datos empleados'!C369=\"\"),\"\",'Base de datos empleados'!D369&\" \"&'Base de datos empleados'!C369)","v":""}]
[{"$f":"IF(OR('Base de datos empleados'!D370=\"\",'Base de datos empleados'!C370=\"\"),\"\",'Base de datos empleados'!D370&\" \"&'Base de datos empleados'!C370)","v":""}]
[{"$f":"IF(OR('Base de datos empleados'!D371=\"\",'Base de datos empleados'!C371=\"\"),\"\",'Base de datos empleados'!D371&\" \"&'Base de datos empleados'!C371)","v":""}]
[{"$f":"IF(OR('Base de datos empleados'!D372=\"\",'Base de datos empleados'!C372=\"\"),\"\",'Base de datos empleados'!D372&\" \"&'Base de datos empleados'!C372)","v":""}]
[{"$f":"IF(OR('Base de datos empleados'!D373=\"\",'Base de datos empleados'!C373=\"\"),\"\",'Base de datos empleados'!D373&\" \"&'Base de datos empleados'!C373)","v":""}]
[{"$f":"IF(OR('Base de datos empleados'!D374=\"\",'Base de datos empleados'!C374=\"\"),\"\",'Base de datos empleados'!D374&\" \"&'Base de datos empleados'!C374)","v":""}]
[{"$f":"IF(OR('Base de datos empleados'!D375=\"\",'Base de datos empleados'!C375=\"\"),\"\",'Base de datos empleados'!D375&\" \"&'Base de datos empleados'!C375)","v":""}]
[{"$f":"IF(OR('Base de datos empleados'!D376=\"\",'Base de datos empleados'!C376=\"\"),\"\",'Base de datos empleados'!D376&\" \"&'Base de datos empleados'!C376)","v":""}]
[{"$f":"IF(OR('Base de datos empleados'!D377=\"\",'Base de datos empleados'!C377=\"\"),\"\",'Base de datos empleados'!D377&\" \"&'Base de datos empleados'!C377)","v":""}]
[{"$f":"IF(OR('Base de datos empleados'!D378=\"\",'Base de datos empleados'!C378=\"\"),\"\",'Base de datos empleados'!D378&\" \"&'Base de datos empleados'!C378)","v":""}]
[{"$f":"IF(OR('Base de datos empleados'!D379=\"\",'Base de datos empleados'!C379=\"\"),\"\",'Base de datos empleados'!D379&\" \"&'Base de datos empleados'!C379)","v":""}]
[{"$f":"IF(OR('Base de datos empleados'!D380=\"\",'Base de datos empleados'!C380=\"\"),\"\",'Base de datos empleados'!D380&\" \"&'Base de datos empleados'!C380)","v":""}]
[{"$f":"IF(OR('Base de datos empleados'!D381=\"\",'Base de datos empleados'!C381=\"\"),\"\",'Base de datos empleados'!D381&\" \"&'Base de datos empleados'!C381)","v":""}]
[{"$f":"IF(OR('Base de datos empleados'!D382=\"\",'Base de datos empleados'!C382=\"\"),\"\",'Base de datos empleados'!D382&\" \"&'Base de datos empleados'!C382)","v":""}]
[{"$f":"IF(OR('Base de datos empleados'!D383=\"\",'Base de datos empleados'!C383=\"\"),\"\",'Base de datos empleados'!D383&\" \"&'Base de datos empleados'!C383)","v":""}]
[{"$f":"IF(OR('Base de datos empleados'!D384=\"\",'Base de datos empleados'!C384=\"\"),\"\",'Base de datos empleados'!D384&\" \"&'Base de datos empleados'!C384)","v":""}]
[{"$f":"IF(OR('Base de datos empleados'!D385=\"\",'Base de datos empleados'!C385=\"\"),\"\",'Base de datos empleados'!D385&\" \"&'Base de datos empleados'!C385)","v":""}]
[{"$f":"IF(OR('Base de datos empleados'!D386=\"\",'Base de datos empleados'!C386=\"\"),\"\",'Base de datos empleados'!D386&\" \"&'Base de datos empleados'!C386)","v":""}]
[{"$f":"IF(OR('Base de datos empleados'!D387=\"\",'Base de datos empleados'!C387=\"\"),\"\",'Base de datos empleados'!D387&\" \"&'Base de datos empleados'!C387)","v":""}]
[{"$f":"IF(OR('Base de datos empleados'!D388=\"\",'Base de datos empleados'!C388=\"\"),\"\",'Base de datos empleados'!D388&\" \"&'Base de datos empleados'!C388)","v":""}]
[{"$f":"IF(OR('Base de datos empleados'!D389=\"\",'Base de datos empleados'!C389=\"\"),\"\",'Base de datos empleados'!D389&\" \"&'Base de datos empleados'!C389)","v":""}]
[{"$f":"IF(OR('Base de datos empleados'!D390=\"\",'Base de datos empleados'!C390=\"\"),\"\",'Base de datos empleados'!D390&\" \"&'Base de datos empleados'!C390)","v":""}]
[{"$f":"IF(OR('Base de datos empleados'!D391=\"\",'Base de datos empleados'!C391=\"\"),\"\",'Base de datos empleados'!D391&\" \"&'Base de datos empleados'!C391)","v":""}]
[{"$f":"IF(OR('Base de datos empleados'!D392=\"\",'Base de datos empleados'!C392=\"\"),\"\",'Base de datos empleados'!D392&\" \"&'Base de datos empleados'!C392)","v":""}]
[{"$f":"IF(OR('Base de datos empleados'!D393=\"\",'Base de datos empleados'!C393=\"\"),\"\",'Base de datos empleados'!D393&\" \"&'Base de datos empleados'!C393)","v":""}]
[{"$f":"IF(OR('Base de datos empleados'!D394=\"\",'Base de datos empleados'!C394=\"\"),\"\",'Base de datos empleados'!D394&\" \"&'Base de datos empleados'!C394)","v":""}]
[{"$f":"IF(OR('Base de datos empleados'!D395=\"\",'Base de datos empleados'!C395=\"\"),\"\",'Base de datos empleados'!D395&\" \"&'Base de datos empleados'!C395)","v":""}]
[{"$f":"IF(OR('Base de datos empleados'!D396=\"\",'Base de datos empleados'!C396=\"\"),\"\",'Base de datos empleados'!D396&\" \"&'Base de datos empleados'!C396)","v":""}]
[{"$f":"IF(OR('Base de datos empleados'!D397=\"\",'Base de datos empleados'!C397=\"\"),\"\",'Base de datos empleados'!D397&\" \"&'Base de datos empleados'!C397)","v":""}]
[{"$f":"IF(OR('Base de datos empleados'!D398=\"\",'Base de datos empleados'!C398=\"\"),\"\",'Base de datos empleados'!D398&\" \"&'Base de datos empleados'!C398)","v":""}]
[{"$f":"IF(OR('Base de datos empleados'!D399=\"\",'Base de datos empleados'!C399=\"\"),\"\",'Base de datos empleados'!D399&\" \"&'Base de datos empleados'!C399)","v":""}]
[{"$f":"IF(OR('Base de datos empleados'!D400=\"\",'Base de datos empleados'!C400=\"\"),\"\",'Base de datos empleados'!D400&\" \"&'Base de datos empleados'!C400)","v":""}]
[{"$f":"IF(OR('Base de datos empleados'!D401=\"\",'Base de datos empleados'!C401=\"\"),\"\",'Base de datos empleados'!D401&\" \"&'Base de datos empleados'!C401)","v":""}]
[{"$f":"IF(OR('Base de datos empleados'!D402=\"\",'Base de datos empleados'!C402=\"\"),\"\",'Base de datos empleados'!D402&\" \"&'Base de datos empleados'!C402)","v":""}]
[{"$f":"IF(OR('Base de datos empleados'!D403=\"\",'Base de datos empleados'!C403=\"\"),\"\",'Base de datos empleados'!D403&\" \"&'Base de datos empleados'!C403)","v":""}]
[{"$f":"IF(OR('Base de datos empleados'!D404=\"\",'Base de datos empleados'!C404=\"\"),\"\",'Base de datos empleados'!D404&\" \"&'Base de datos empleados'!C404)","v":""}]
[{"$f":"IF(OR('Base de datos empleados'!D405=\"\",'Base de datos empleados'!C405=\"\"),\"\",'Base de datos empleados'!D405&\" \"&'Base de datos empleados'!C405)","v":""}]
[{"$f":"IF(OR('Base de datos empleados'!D406=\"\",'Base de datos empleados'!C406=\"\"),\"\",'Base de datos empleados'!D406&\" \"&'Base de datos empleados'!C406)","v":""}]
[{"$f":"IF(OR('Base de datos empleados'!D407=\"\",'Base de datos empleados'!C407=\"\"),\"\",'Base de datos empleados'!D407&\" \"&'Base de datos empleados'!C407)","v":""}]
[{"$f":"IF(OR('Base de datos empleados'!D408=\"\",'Base de datos empleados'!C408=\"\"),\"\",'Base de datos empleados'!D408&\" \"&'Base de datos empleados'!C408)","v":""}]
[{"$f":"IF(OR('Base de datos empleados'!D409=\"\",'Base de datos empleados'!C409=\"\"),\"\",'Base de datos empleados'!D409&\" \"&'Base de datos empleados'!C409)","v":""}]
[{"$f":"IF(OR('Base de datos empleados'!D410=\"\",'Base de datos empleados'!C410=\"\"),\"\",'Base de datos empleados'!D410&\" \"&'Base de datos empleados'!C410)","v":""}]
[{"$f":"IF(OR('Base de datos empleados'!D411=\"\",'Base de datos empleados'!C411=\"\"),\"\",'Base de datos empleados'!D411&\" \"&'Base de datos empleados'!C411)","v":""}]
[{"$f":"IF(OR('Base de datos empleados'!D412=\"\",'Base de datos empleados'!C412=\"\"),\"\",'Base de datos empleados'!D412&\" \"&'Base de datos empleados'!C412)","v":""}]
[{"$f":"IF(OR('Base de datos empleados'!D413=\"\",'Base de datos empleados'!C413=\"\"),\"\",'Base de datos empleados'!D413&\" \"&'Base de datos empleados'!C413)","v":""}]
[{"$f":"IF(OR('Base de datos empleados'!D414=\"\",'Base de datos empleados'!C414=\"\"),\"\",'Base de datos empleados'!D414&\" \"&'Base de datos empleados'!C414)","v":""}]
[{"$f":"IF(OR('Base de datos empleados'!D415=\"\",'Base de datos empleados'!C415=\"\"),\"\",'Base de datos empleados'!D415&\" \"&'Base de datos empleados'!C415)","v":""}]
[{"$f":"IF(OR('Base de datos empleados'!D416=\"\",'Base de datos empleados'!C416=\"\"),\"\",'Base de datos empleados'!D416&\" \"&'Base de datos empleados'!C416)","v":""}]
[{"$f":"IF(OR('Base de datos empleados'!D417=\"\",'Base de datos empleados'!C417=\"\"),\"\",'Base de datos empleados'!D417&\" \"&'Base de datos empleados'!C417)","v":""}]
[{"$f":"IF(OR('Base de datos empleados'!D418=\"\",'Base de datos empleados'!C418=\"\"),\"\",'Base de datos empleados'!D418&\" \"&'Base de datos empleados'!C418)","v":""}]
[{"$f":"IF(OR('Base de datos empleados'!D419=\"\",'Base de datos empleados'!C419=\"\"),\"\",'Base de datos empleados'!D419&\" \"&'Base de datos empleados'!C419)","v":""}]
[{"$f":"IF(OR('Base de datos empleados'!D420=\"\",'Base de datos empleados'!C420=\"\"),\"\",'Base de datos empleados'!D420&\" \"&'Base de datos empleados'!C420)","v":""}]
[{"$f":"IF(OR('Base de datos empleados'!D421=\"\",'Base de datos empleados'!C421=\"\"),\"\",'Base de datos empleados'!D421&\" \"&'Base de datos empleados'!C421)","v":""}]
[{"$f":"IF(OR('Base de datos empleados'!D422=\"\",'Base de datos empleados'!C422=\"\"),\"\",'Base de datos empleados'!D422&\" \"&'Base de datos empleados'!C422)","v":""}]
[{"$f":"IF(OR('Base de datos empleados'!D423=\"\",'Base de datos empleados'!C423=\"\"),\"\",'Base de datos empleados'!D423&\" \"&'Base de datos empleados'!C423)","v":""}]
[{"$f":"IF(OR('Base de datos empleados'!D424=\"\",'Base de datos empleados'!C424=\"\"),\"\",'Base de datos empleados'!D424&\" \"&'Base de datos empleados'!C424)","v":""}]
[{"$f":"IF(OR('Base de datos empleados'!D425=\"\",'Base de datos empleados'!C425=\"\"),\"\",'Base de datos empleados'!D425&\" \"&'Base de datos empleados'!C425)","v":""}]
[{"$f":"IF(OR('Base de datos empleados'!D426=\"\",'Base de datos empleados'!C426=\"\"),\"\",'Base de datos empleados'!D426&\" \"&'Base de datos empleados'!C426)","v":""}]
[{"$f":"IF(OR('Base de datos empleados'!D427=\"\",'Base de datos empleados'!C427=\"\"),\"\",'Base de datos empleados'!D427&\" \"&'Base de datos empleados'!C427)","v":""}]
[{"$f":"IF(OR('Base de datos empleados'!D428=\"\",'Base de datos empleados'!C428=\"\"),\"\",'Base de datos empleados'!D428&\" \"&'Base de datos empleados'!C428)","v":""}]
[{"$f":"IF(OR('Base de datos empleados'!D429=\"\",'Base de datos empleados'!C429=\"\"),\"\",'Base de datos empleados'!D429&\" \"&'Base de datos empleados'!C429)","v":""}]
[{"$f":"IF(OR('Base de datos empleados'!D430=\"\",'Base de datos empleados'!C430=\"\"),\"\",'Base de datos empleados'!D430&\" \"&'Base de datos empleados'!C430)","v":""}]
[{"$f":"IF(OR('Base de datos empleados'!D431=\"\",'Base de datos empleados'!C431=\"\"),\"\",'Base de datos empleados'!D431&\" \"&'Base de datos empleados'!C431)","v":""}]
[{"$f":"IF(OR('Base de datos empleados'!D432=\"\",'Base de datos empleados'!C432=\"\"),\"\",'Base de datos empleados'!D432&\" \"&'Base de datos empleados'!C432)","v":""}]
[{"$f":"IF(OR('Base de datos empleados'!D433=\"\",'Base de datos empleados'!C433=\"\"),\"\",'Base de datos empleados'!D433&\" \"&'Base de datos empleados'!C433)","v":""}]
[{"$f":"IF(OR('Base de datos empleados'!D434=\"\",'Base de datos empleados'!C434=\"\"),\"\",'Base de datos empleados'!D434&\" \"&'Base de datos empleados'!C434)","v":""}]
[{"$f":"IF(OR('Base de datos empleados'!D435=\"\",'Base de datos empleados'!C435=\"\"),\"\",'Base de datos empleados'!D435&\" \"&'Base de datos empleados'!C435)","v":""}]
[{"$f":"IF(OR('Base de datos empleados'!D436=\"\",'Base de datos empleados'!C436=\"\"),\"\",'Base de datos empleados'!D436&\" \"&'Base de datos empleados'!C436)","v":""}]
[{"$f":"IF(OR('Base de datos empleados'!D437=\"\",'Base de datos empleados'!C437=\"\"),\"\",'Base de datos empleados'!D437&\" \"&'Base de datos empleados'!C437)","v":""}]
[{"$f":"IF(OR('Base de datos empleados'!D438=\"\",'Base de datos empleados'!C438=\"\"),\"\",'Base de datos empleados'!D438&\" \"&'Base de datos empleados'!C438)","v":""}]
[{"$f":"IF(OR('Base de datos empleados'!D439=\"\",'Base de datos empleados'!C439=\"\"),\"\",'Base de datos empleados'!D439&\" \"&'Base de datos empleados'!C439)","v":""}]
[{"$f":"IF(OR('Base de datos empleados'!D440=\"\",'Base de datos empleados'!C440=\"\"),\"\",'Base de datos empleados'!D440&\" \"&'Base de datos empleados'!C440)","v":""}]
[{"$f":"IF(OR('Base de datos empleados'!D441=\"\",'Base de datos empleados'!C441=\"\"),\"\",'Base de datos empleados'!D441&\" \"&'Base de datos empleados'!C441)","v":""}]
[{"$f":"IF(OR('Base de datos empleados'!D442=\"\",'Base de datos empleados'!C442=\"\"),\"\",'Base de datos empleados'!D442&\" \"&'Base de datos empleados'!C442)","v":""}]
[{"$f":"IF(OR('Base de datos empleados'!D443=\"\",'Base de datos empleados'!C443=\"\"),\"\",'Base de datos empleados'!D443&\" \"&'Base de datos empleados'!C443)","v":""}]
[{"$f":"IF(OR('Base de datos empleados'!D444=\"\",'Base de datos empleados'!C444=\"\"),\"\",'Base de datos empleados'!D444&\" \"&'Base de datos empleados'!C444)","v":""}]
[{"$f":"IF(OR('Base de datos empleados'!D445=\"\",'Base de datos empleados'!C445=\"\"),\"\",'Base de datos empleados'!D445&\" \"&'Base de datos empleados'!C445)","v":""}]
[{"$f":"IF(OR('Base de datos empleados'!D446=\"\",'Base de datos empleados'!C446=\"\"),\"\",'Base de datos empleados'!D446&\" \"&'Base de datos empleados'!C446)","v":""}]
[{"$f":"IF(OR('Base de datos empleados'!D447=\"\",'Base de datos empleados'!C447=\"\"),\"\",'Base de datos empleados'!D447&\" \"&'Base de datos empleados'!C447)","v":""}]
[{"$f":"IF(OR('Base de datos empleados'!D448=\"\",'Base de datos empleados'!C448=\"\"),\"\",'Base de datos empleados'!D448&\" \"&'Base de datos empleados'!C448)","v":""}]
[{"$f":"IF(OR('Base de datos empleados'!D449=\"\",'Base de datos empleados'!C449=\"\"),\"\",'Base de datos empleados'!D449&\" \"&'Base de datos empleados'!C449)","v":""}]
[{"$f":"IF(OR('Base de datos empleados'!D450=\"\",'Base de datos empleados'!C450=\"\"),\"\",'Base de datos empleados'!D450&\" \"&'Base de datos empleados'!C450)","v":""}]
[{"$f":"IF(OR('Base de datos empleados'!D451=\"\",'Base de datos empleados'!C451=\"\"),\"\",'Base de datos empleados'!D451&\" \"&'Base de datos empleados'!C451)","v":""}]
[{"$f":"IF(OR('Base de datos empleados'!D452=\"\",'Base de datos empleados'!C452=\"\"),\"\",'Base de datos empleados'!D452&\" \"&'Base de datos empleados'!C452)","v":""}]
[{"$f":"IF(OR('Base de datos empleados'!D453=\"\",'Base de datos empleados'!C453=\"\"),\"\",'Base de datos empleados'!D453&\" \"&'Base de datos empleados'!C453)","v":""}]
[{"$f":"IF(OR('Base de datos empleados'!D454=\"\",'Base de datos empleados'!C454=\"\"),\"\",'Base de datos empleados'!D454&\" \"&'Base de datos empleados'!C454)","v":""}]
[{"$f":"IF(OR('Base de datos empleados'!D455=\"\",'Base de datos empleados'!C455=\"\"),\"\",'Base de datos empleados'!D455&\" \"&'Base de datos empleados'!C455)","v":""}]
[{"$f":"IF(OR('Base de datos empleados'!D456=\"\",'Base de datos empleados'!C456=\"\"),\"\",'Base de datos empleados'!D456&\" \"&'Base de datos empleados'!C456)","v":""}]
[{"$f":"IF(OR('Base de datos empleados'!D457=\"\",'Base de datos empleados'!C457=\"\"),\"\",'Base de datos empleados'!D457&\" \"&'Base de datos empleados'!C457)","v":""}]
[{"$f":"IF(OR('Base de datos empleados'!D458=\"\",'Base de datos empleados'!C458=\"\"),\"\",'Base de datos empleados'!D458&\" \"&'Base de datos empleados'!C458)","v":""}]
[{"$f":"IF(OR('Base de datos empleados'!D459=\"\",'Base de datos empleados'!C459=\"\"),\"\",'Base de datos empleados'!D459&\" \"&'Base de datos empleados'!C459)","v":""}]
[{"$f":"IF(OR('Base de datos empleados'!D460=\"\",'Base de datos empleados'!C460=\"\"),\"\",'Base de datos empleados'!D460&\" \"&'Base de datos empleados'!C460)","v":""}]
[{"$f":"IF(OR('Base de datos empleados'!D461=\"\",'Base de datos empleados'!C461=\"\"),\"\",'Base de datos empleados'!D461&\" \"&'Base de datos empleados'!C461)","v":""}]
[{"$f":"IF(OR('Base de datos empleados'!D462=\"\",'Base de datos empleados'!C462=\"\"),\"\",'Base de datos empleados'!D462&\" \"&'Base de datos empleados'!C462)","v":""}]
[{"$f":"IF(OR('Base de datos empleados'!D463=\"\",'Base de datos empleados'!C463=\"\"),\"\",'Base de datos empleados'!D463&\" \"&'Base de datos empleados'!C463)","v":""}]
[{"$f":"IF(OR('Base de datos empleados'!D464=\"\",'Base de datos empleados'!C464=\"\"),\"\",'Base de datos empleados'!D464&\" \"&'Base de datos empleados'!C464)","v":""}]
[{"$f":"IF(OR('Base de datos empleados'!D465=\"\",'Base de datos empleados'!C465=\"\"),\"\",'Base de datos empleados'!D465&\" \"&'Base de datos empleados'!C465)","v":""}]
[{"$f":"IF(OR('Base de datos empleados'!D466=\"\",'Base de datos empleados'!C466=\"\"),\"\",'Base de datos empleados'!D466&\" \"&'Base de datos empleados'!C466)","v":""}]
[{"$f":"IF(OR('Base de datos empleados'!D467=\"\",'Base de datos empleados'!C467=\"\"),\"\",'Base de datos empleados'!D467&\" \"&'Base de datos empleados'!C467)","v":""}]
[{"$f":"IF(OR('Base de datos empleados'!D468=\"\",'Base de datos empleados'!C468=\"\"),\"\",'Base de datos empleados'!D468&\" \"&'Base de datos empleados'!C468)","v":""}]
[{"$f":"IF(OR('Base de datos empleados'!D469=\"\",'Base de datos empleados'!C469=\"\"),\"\",'Base de datos empleados'!D469&\" \"&'Base de datos empleados'!C469)","v":""}]
[{"$f":"IF(OR('Base de datos empleados'!D470=\"\",'Base de datos empleados'!C470=\"\"),\"\",'Base de datos empleados'!D470&\" \"&'Base de datos empleados'!C470)","v":""}]
[{"$f":"IF(OR('Base de datos empleados'!D471=\"\",'Base de datos empleados'!C471=\"\"),\"\",'Base de datos empleados'!D471&\" \"&'Base de datos empleados'!C471)","v":""}]
[{"$f":"IF(OR('Base de datos empleados'!D472=\"\",'Base de datos empleados'!C472=\"\"),\"\",'Base de datos empleados'!D472&\" \"&'Base de datos empleados'!C472)","v":""}]
[{"$f":"IF(OR('Base de datos empleados'!D473=\"\",'Base de datos empleados'!C473=\"\"),\"\",'Base de datos empleados'!D473&\" \"&'Base de datos empleados'!C473)","v":""}]
[{"$f":"IF(OR('Base de datos empleados'!D474=\"\",'Base de datos empleados'!C474=\"\"),\"\",'Base de datos empleados'!D474&\" \"&'Base de datos empleados'!C474)","v":""}]
[{"$f":"IF(OR('Base de datos empleados'!D475=\"\",'Base de datos empleados'!C475=\"\"),\"\",'Base de datos empleados'!D475&\" \"&'Base de datos empleados'!C475)","v":""}]
[{"$f":"IF(OR('Base de datos empleados'!D476=\"\",'Base de datos empleados'!C476=\"\"),\"\",'Base de datos empleados'!D476&\" \"&'Base de datos empleados'!C476)","v":""}]
[{"$f":"IF(OR('Base de datos empleados'!D477=\"\",'Base de datos empleados'!C477=\"\"),\"\",'Base de datos empleados'!D477&\" \"&'Base de datos empleados'!C477)","v":""}]
[{"$f":"IF(OR('Base de datos empleados'!D478=\"\",'Base de datos empleados'!C478=\"\"),\"\",'Base de datos empleados'!D478&\" \"&'Base de datos empleados'!C478)","v":""}]
[{"$f":"IF(OR('Base de datos empleados'!D479=\"\",'Base de datos empleados'!C479=\"\"),\"\",'Base de datos empleados'!D479&\" \"&'Base de datos empleados'!C479)","v":""}]
[{"$f":"IF(OR('Base de datos empleados'!D480=\"\",'Base de datos empleados'!C480=\"\"),\"\",'Base de datos empleados'!D480&\" \"&'Base de datos empleados'!C480)","v":""}]
[{"$f":"IF(OR('Base de datos empleados'!D481=\"\",'Base de datos empleados'!C481=\"\"),\"\",'Base de datos empleados'!D481&\" \"&'Base de datos empleados'!C481)","v":""}]
[{"$f":"IF(OR('Base de datos empleados'!D482=\"\",'Base de datos empleados'!C482=\"\"),\"\",'Base de datos empleados'!D482&\" \"&'Base de datos empleados'!C482)","v":""}]
[{"$f":"IF(OR('Base de datos empleados'!D483=\"\",'Base de datos empleados'!C483=\"\"),\"\",'Base de datos empleados'!D483&\" \"&'Base de datos empleados'!C483)","v":""}]
[{"$f":"IF(OR('Base de datos empleados'!D484=\"\",'Base de datos empleados'!C484=\"\"),\"\",'Base de datos empleados'!D484&\" \"&'Base de datos empleados'!C484)","v":""}]
[{"$f":"IF(OR('Base de datos empleados'!D485=\"\",'Base de datos empleados'!C485=\"\"),\"\",'Base de datos empleados'!D485&\" \"&'Base de datos empleados'!C485)","v":""}]
[{"$f":"IF(OR('Base de datos empleados'!D486=\"\",'Base de datos empleados'!C486=\"\"),\"\",'Base de datos empleados'!D486&\" \"&'Base de datos empleados'!C486)","v":""}]
[{"$f":"IF(OR('Base de datos empleados'!D487=\"\",'Base de datos empleados'!C487=\"\"),\"\",'Base de datos empleados'!D487&\" \"&'Base de datos empleados'!C487)","v":""}]
[{"$f":"IF(OR('Base de datos empleados'!D488=\"\",'Base de datos empleados'!C488=\"\"),\"\",'Base de datos empleados'!D488&\" \"&'Base de datos empleados'!C488)","v":""}]
[{"$f":"IF(OR('Base de datos empleados'!D489=\"\",'Base de datos empleados'!C489=\"\"),\"\",'Base de datos empleados'!D489&\" \"&'Base de datos empleados'!C489)","v":""}]
[{"$f":"IF(OR('Base de datos empleados'!D490=\"\",'Base de datos empleados'!C490=\"\"),\"\",'Base de datos empleados'!D490&\" \"&'Base de datos empleados'!C490)","v":""}]
[{"$f":"IF(OR('Base de datos empleados'!D491=\"\",'Base de datos empleados'!C491=\"\"),\"\",'Base de datos empleados'!D491&\" \"&'Base de datos empleados'!C491)","v":""}]
[{"$f":"IF(OR('Base de datos empleados'!D492=\"\",'Base de datos empleados'!C492=\"\"),\"\",'Base de datos empleados'!D492&\" \"&'Base de datos empleados'!C492)","v":""}]
[{"$f":"IF(OR('Base de datos empleados'!D493=\"\",'Base de datos empleados'!C493=\"\"),\"\",'Base de datos empleados'!D493&\" \"&'Base de datos empleados'!C493)","v":""}]
[{"$f":"IF(OR('Base de datos empleados'!D494=\"\",'Base de datos empleados'!C494=\"\"),\"\",'Base de datos empleados'!D494&\" \"&'Base de datos empleados'!C494)","v":""}]
[{"$f":"IF(OR('Base de datos empleados'!D495=\"\",'Base de datos empleados'!C495=\"\"),\"\",'Base de datos empleados'!D495&\" \"&'Base de datos empleados'!C495)","v":""}]
[{"$f":"IF(OR('Base de datos empleados'!D496=\"\",'Base de datos empleados'!C496=\"\"),\"\",'Base de datos empleados'!D496&\" \"&'Base de datos empleados'!C496)","v":""}]
[{"$f":"IF(OR('Base de datos empleados'!D497=\"\",'Base de datos empleados'!C497=\"\"),\"\",'Base de datos empleados'!D497&\" \"&'Base de datos empleados'!C497)","v":""}]
[{"$f":"IF(OR('Base de datos empleados'!D498=\"\",'Base de datos empleados'!C498=\"\"),\"\",'Base de datos empleados'!D498&\" \"&'Base de datos empleados'!C498)","v":""}]
[{"$f":"IF(OR('Base de datos empleados'!D499=\"\",'Base de datos empleados'!C499=\"\"),\"\",'Base de datos empleados'!D499&\" \"&'Base de datos empleados'!C499)","v":""}]
[{"$f":"IF(OR('Base de datos empleados'!D500=\"\",'Base de datos empleados'!C500=\"\"),\"\",'Base de datos empleados'!D500&\" \"&'Base de datos empleados'!C500)","v":""}]
[{"$f":"IF(OR('Base de datos empleados'!D501=\"\",'Base de datos empleados'!C501=\"\"),\"\",'Base de datos empleados'!D501&\" \"&'Base de datos empleados'!C501)","v":""}]
[{"$f":"IF(OR('Base de datos empleados'!D502=\"\",'Base de datos empleados'!C502=\"\"),\"\",'Base de datos empleados'!D502&\" \"&'Base de datos empleados'!C502)","v":""}]
[{"$f":"IF(OR('Base de datos empleados'!D503=\"\",'Base de datos empleados'!C503=\"\"),\"\",'Base de datos empleados'!D503&\" \"&'Base de datos empleados'!C503)","v":""}]
[{"$f":"IF(OR('Base de datos empleados'!D504=\"\",'Base de datos empleados'!C504=\"\"),\"\",'Base de datos empleados'!D504&\" \"&'Base de datos empleados'!C504)","v":""}]
[{"$f":"IF(OR('Base de datos empleados'!D505=\"\",'Base de datos empleados'!C505=\"\"),\"\",'Base de datos empleados'!D505&\" \"&'Base de datos empleados'!C505)","v":""}]
[{"$f":"IF(OR('Base de datos empleados'!D506=\"\",'Base de datos empleados'!C506=\"\"),\"\",'Base de datos empleados'!D506&\" \"&'Base de datos empleados'!C506)","v":""}]
[{"$f":"IF(OR('Base de datos empleados'!D507=\"\",'Base de datos empleados'!C507=\"\"),\"\",'Base de datos empleados'!D507&\" \"&'Base de datos empleados'!C507)","v":""}]
[{"$f":"IF(OR('Base de datos empleados'!D508=\"\",'Base de datos empleados'!C508=\"\"),\"\",'Base de datos empleados'!D508&\" \"&'Base de datos empleados'!C508)","v":""}]
[{"$f":"IF(OR('Base de datos empleados'!D509=\"\",'Base de datos empleados'!C509=\"\"),\"\",'Base de datos empleados'!D509&\" \"&'Base de datos empleados'!C509)","v":""}]
[{"$f":"IF(OR('Base de datos empleados'!D510=\"\",'Base de datos empleados'!C510=\"\"),\"\",'Base de datos empleados'!D510&\" \"&'Base de datos empleados'!C510)","v":""}]
[{"$f":"IF(OR('Base de datos empleados'!D511=\"\",'Base de datos empleados'!C511=\"\"),\"\",'Base de datos empleados'!D511&\" \"&'Base de datos empleados'!C511)","v":""}]
[{"$f":"IF(OR('Base de datos empleados'!D512=\"\",'Base de datos empleados'!C512=\"\"),\"\",'Base de datos empleados'!D512&\" \"&'Base de datos empleados'!C512)","v":""}]
[{"$f":"IF(OR('Base de datos empleados'!D513=\"\",'Base de datos empleados'!C513=\"\"),\"\",'Base de datos empleados'!D513&\" \"&'Base de datos empleados'!C513)","v":""}]
[{"$f":"IF(OR('Base de datos empleados'!D514=\"\",'Base de datos empleados'!C514=\"\"),\"\",'Base de datos empleados'!D514&\" \"&'Base de datos empleados'!C514)","v":""}]
[{"$f":"IF(OR('Base de datos empleados'!D515=\"\",'Base de datos empleados'!C515=\"\"),\"\",'Base de datos empleados'!D515&\" \"&'Base de datos empleados'!C515)","v":""}]
[{"$f":"IF(OR('Base de datos empleados'!D516=\"\",'Base de datos empleados'!C516=\"\"),\"\",'Base de datos empleados'!D516&\" \"&'Base de datos empleados'!C516)","v":""}]
[{"$f":"IF(OR('Base de datos empleados'!D517=\"\",'Base de datos empleados'!C517=\"\"),\"\",'Base de datos empleados'!D517&\" \"&'Base de datos empleados'!C517)","v":""}]
[{"$f":"IF(OR('Base de datos empleados'!D518=\"\",'Base de datos empleados'!C518=\"\"),\"\",'Base de datos empleados'!D518&\" \"&'Base de datos empleados'!C518)","v":""}]
[{"$f":"IF(OR('Base de datos empleados'!D519=\"\",'Base de datos empleados'!C519=\"\"),\"\",'Base de datos empleados'!D519&\" \"&'Base de datos empleados'!C519)","v":""}]
[{"$f":"IF(OR('Base de datos empleados'!D520=\"\",'Base de datos empleados'!C520=\"\"),\"\",'Base de datos empleados'!D520&\" \"&'Base de datos empleados'!C520)","v":""}]
[{"$f":"IF(OR('Base de datos empleados'!D521=\"\",'Base de datos empleados'!C521=\"\"),\"\",'Base de datos empleados'!D521&\" \"&'Base de datos empleados'!C521)","v":""}]
[{"$f":"IF(OR('Base de datos empleados'!D522=\"\",'Base de datos empleados'!C522=\"\"),\"\",'Base de datos empleados'!D522&\" \"&'Base de datos empleados'!C522)","v":""}]
[{"$f":"IF(OR('Base de datos empleados'!D523=\"\",'Base de datos empleados'!C523=\"\"),\"\",'Base de datos empleados'!D523&\" \"&'Base de datos empleados'!C523)","v":""}]
[{"$f":"IF(OR('Base de datos empleados'!D524=\"\",'Base de datos empleados'!C524=\"\"),\"\",'Base de datos empleados'!D524&\" \"&'Base de datos empleados'!C524)","v":""}]
[{"$f":"IF(OR('Base de datos empleados'!D525=\"\",'Base de datos empleados'!C525=\"\"),\"\",'Base de datos empleados'!D525&\" \"&'Base de datos empleados'!C525)","v":""}]
[{"$f":"IF(OR('Base de datos empleados'!D526=\"\",'Base de datos empleados'!C526=\"\"),\"\",'Base de datos empleados'!D526&\" \"&'Base de datos empleados'!C526)","v":""}]
[{"$f":"IF(OR('Base de datos empleados'!D527=\"\",'Base de datos empleados'!C527=\"\"),\"\",'Base de datos empleados'!D527&\" \"&'Base de datos empleados'!C527)","v":""}]
[{"$f":"IF(OR('Base de datos empleados'!D528=\"\",'Base de datos empleados'!C528=\"\"),\"\",'Base de datos empleados'!D528&\" \"&'Base de datos empleados'!C528)","v":""}]
[{"$f":"IF(OR('Base de datos empleados'!D529=\"\",'Base de datos empleados'!C529=\"\"),\"\",'Base de datos empleados'!D529&\" \"&'Base de datos empleados'!C529)","v":""}]
[{"$f":"IF(OR('Base de datos empleados'!D530=\"\",'Base de datos empleados'!C530=\"\"),\"\",'Base de datos empleados'!D530&\" \"&'Base de datos empleados'!C530)","v":""}]
[{"$f":"IF(OR('Base de datos empleados'!D531=\"\",'Base de datos empleados'!C531=\"\"),\"\",'Base de datos empleados'!D531&\" \"&'Base de datos empleados'!C531)","v":""}]
[{"$f":"IF(OR('Base de datos empleados'!D532=\"\",'Base de datos empleados'!C532=\"\"),\"\",'Base de datos empleados'!D532&\" \"&'Base de datos empleados'!C532)","v":""}]
[{"$f":"IF(OR('Base de datos empleados'!D533=\"\",'Base de datos empleados'!C533=\"\"),\"\",'Base de datos empleados'!D533&\" \"&'Base de datos empleados'!C533)","v":""}]
[{"$f":"'Base de datos empleados'!D532&\" \"&'Base de datos empleados'!C532","v":" "}]
[{"$f":"'Base de datos empleados'!D533&\" \"&'Base de datos empleados'!C533","v":" "}]
[{"$f":"'Base de datos empleados'!D534&\" \"&'Base de datos empleados'!C534","v":" "}]
[{"$f":"'Base de datos empleados'!D535&\" \"&'Base de datos empleados'!C535","v":" "}]
[{"$f":"'Base de datos empleados'!D536&\" \"&'Base de datos empleados'!C536","v":" "}]
[{"$f":"'Base de datos empleados'!D537&\" \"&'Base de datos empleados'!C537","v":" "}]
[{"$f":"'Base de datos empleados'!D538&\" \"&'Base de datos empleados'!C538","v":" "}]
[{"$f":"'Base de datos empleados'!D539&\" \"&'Base de datos empleados'!C539","v":" "}]
[{"$f":"'Base de datos empleados'!D540&\" \"&'Base de datos empleados'!C540","v":" "}]
[{"$f":"'Base de datos empleados'!D541&\" \"&'Base de datos empleados'!C541","v":" "}]
[{"$f":"'Base de datos empleados'!D542&\" \"&'Base de datos empleados'!C542","v":" "}]
[{"$f":"'Base de datos empleados'!D543&\" \"&'Base de datos empleados'!C543","v":" "}]
[{"$f":"'Base de datos empleados'!D544&\" \"&'Base de datos empleados'!C544","v":" "}]
[{"$f":"'Base de datos empleados'!D545&\" \"&'Base de datos empleados'!C545","v":" "}]
[{"$f":"'Base de datos empleados'!D546&\" \"&'Base de datos empleados'!C546","v":" "}]
[{"$f":"'Base de datos empleados'!D547&\" \"&'Base de datos empleados'!C547","v":" "}]
[{"$f":"'Base de datos empleados'!D548&\" \"&'Base de datos empleados'!C548","v":" "}]
[{"$f":"'Base de datos empleados'!D549&\" \"&'Base de datos empleados'!C549","v":" "}]
[{"$f":"'Base de datos empleados'!D550&\" \"&'Base de datos empleados'!C550","v":" "}]
[{"$f":"'Base de datos empleados'!D551&\" \"&'Base de datos empleados'!C551","v":" "}]
[{"$f":"'Base de datos empleados'!D552&\" \"&'Base de datos empleados'!C552","v":" "}]

{"sheet":"Hoja1","index":4,"n_rows":0,"n_cols":0,"rows_kept":0,"cut":false,"hidden":true,"merged":[]}